Cogmind - Beta 16.1 @@@ ROGUE MODE // 2026.03.16 @ 16:46:03 Player: Satori Result: Destroyed by EQ-023 with Cooled Phase Cannon Performance ------------- Evolutions (9) 4500 Regions Visited (32) 6400 Robots Destroyed (363) 1815 Value Destroyed (20075) 20075 Prototype IDs (95) 1900 Alien Tech Used (0) 0 Bonus (25302) 25302 TOTAL SCORE: 59992 Bonus ------- High Alert Combat Kills 2683 Follower Combat Kills 2060 Entered Garrisons 200 Used RIF Installer 500 Entered DSFs 500 Aligned with FarCom 300 Met Imprinter 300 Destroyed Z-Imprinter 1000 Triggered Deep Caves Wall 500 Exposed GOLEM Chamber 500 Met Zhirov 300 Met Warlord at Base 500 MAIN.C Attacked Warlord 500 Warlord Defense Kills 1404 Built Enhanced Grunts 300 A7 Reached Mainframe 300 Met R17 at Cetus 500 Read Decrypted Archives 300 Met R17 at Research 2000 Destroyed MAIN.C Guards 500 Met MAIN.C 5000 Hacked MAIN.C 300 Destroyed MAIN.C Shell 5000 Met Warlord at Command 2000 Friendly Fire -2145 Cogmind --------- Core Integrity 0/1600 Matter 32/300 Energy 900/1100 System Corruption 4% Temperature Cool (24) Movement Walking (110) Location -1/Command Parts ------- > --- POWER (3) -------- (None) > --- PROPULSION (5) --- Enhanced Biometal Leg Enhanced Biometal Leg Centrium Leg Centrium Leg (fused) > --- UTILITY (13) ----- Assembled Nanovents Assembled Nanovents Assembled Biocell Array Assembled Suspension Frame Assembled Combat Suite Experimental Targeting Computer Advanced Reaction Control System Centrium Medium Armor Plating Centrium Heavy Armor Plating Assembled Alloy Armor Experimental System Purifier > --- WEAPON (4) ------- Assembled Focal Cannon > --- INVENTORY (5) ---- Improved Particle Charger Peak State ------------ > --- POWER ------------ Zero-point Reactor Vortex Chain Reactor > --- PROPULSION ------- Enhanced Biometal Leg Assembled Alloy Leg Centrium Leg Centrium Leg Centrium Leg > --- UTILITY ---------- Experimental Cooling System Assembled Nanovents High-capacity Storage Unit Assembled Biocell Array Assembled Biocell Array Assembled Combat Suite Experimental Targeting Computer Assembled Alloy Armor Assembled Alloy Armor Thermal Barrier Experimental System Purifier GOLEM Unit > --- WEAPON ----------- Assembled Focal Cannon Heavy Hardcell Cannon Graviton Cannon > --- INVENTORY -------- Zero-point Reactor Enhanced Biometal Leg Enhanced Biometal Leg Experimental Biometal Leg Experimental Energy Well Zionite Biocell Zionite Biocell Improved Particle Charger Advanced Reaction Control System Advanced Reaction Control System Improved Medium Armor Plating Centrium Medium Armor Plating Centrium Heavy Armor Plating Advanced Force Field Advanced Point Defense System Enhanced Nova Cannon Cooled Nova Cannon Ragnarok Missile Launcher [Rating: 230] Favorites ----------- Power Assembled Flux Generator Engine Deuterium Engine Power Core Enhanced Nuclear Core Reactor Assembled Flux Generator Propulsion Assembled Alloy Leg Treads Medium Treads Leg Assembled Alloy Leg Wheel Wheel Utility Assembled Biocell Array Device GOLEM Unit Storage Assembled Biocell Array Processor Experimental Targeting Computer Hackware Relay Coupler [NC] Protection Assembled Alloy Armor Weapon Assembled Focal Cannon Energy Gun Heavy Beamcaster Energy Cannon Assembled Focal Cannon Ballistic Gun Improved Assault Rifle Ballistic Cannon Hardcell Cannon Launcher Rocket Array Special Weapon Improved Remote Datajack Impact Weapon Great Maul Slashing Weapon Ionic Axe Build | -11 -10 -10 -10 -9 -8 -7 -7 -7 -7 -7 -7 -7 -6 -6 -6 -6 -6 -6 -5 -5 -5 -5 -4 -4 -4 -4 -4 -4 -3 -2 -1 -1 ------- Run | Yrd Mat Min Exi Min Mat Fac Was Fac Low Low Zio Dee Pro Fac Ext Cet Arc Hub Fac Upp Upp War Pro Fac Was Fac DSF Gar Res Res Acc Com Slots Evolved 18 | . . . . . 4 2 . . . . . . . 2 . . . . 2 . . . . 2 . . . . 2 2 2 . Power 2 | . . . . . . . . . . . . . . 1 . . . . . . . . . . . . . . . . 1 . Propulsion 3 | . . . . . 1 1 . . . . . . . . . . . . 1 . . . . . . . . . . . . . Utility 11 | . . . . . 1 1 . . . . . . . 1 . . . . 1 . . . . 2 . . . . 2 2 1 . Weapon 2 | . . . . . 2 . . . . . . . . . . . . . . . . . . . . . . . . . . . Parts Attached 211 | 7 3 1 1 3 29 9 6 3 . 2 2 21 2 2 1 4 . 1 22 3 6 13 3 4 3 4 . 3 7 6 13 27 Power 19 | 1 . . . . 4 1 1 1 . 1 . 2 . . . . . . 1 . . . 1 . . . . . . . 3 3 Engine 6 | 1 . . . . 4 1 . . . . . . . . . . . . . . . . . . . . . . . . . . Core 2 | . . . . . . . . 1 . 1 . . . . . . . . . . . . . . . . . . . . . . Reactor 11 | . . . . . . . 1 . . . . 2 . . . . . . 1 . . . 1 . . . . . . . 3 3 Propulsion 50 | 2 1 1 . 1 9 2 . . . 1 . 4 . . . . . 1 11 1 3 3 . . 1 . . . 1 2 2 4 Treads 18 | 1 1 . . 1 9 2 . . . 1 . . . . . . . . 3 . . . . . . . . . . . . . Leg 28 | . . . . . . . . . . . . 4 . . . . . 1 6 1 3 3 . . 1 . . . 1 2 2 4 Wheel 4 | 1 . 1 . . . . . . . . . . . . . . . . 2 . . . . . . . . . . . . . Hover . | . . . . . . . . . . . . . . . . . . . . . . . . . . . . . . . . . Flight . | . . . . . . . . . . . . . . . . . . . . . . . . . . . . . . . . . Utility 91 | 2 1 . . 2 8 2 1 1 . . 1 10 2 2 1 2 . . 7 2 2 5 2 3 1 4 . 2 5 2 7 14 Device 39 | 1 . . . 2 3 1 1 . . . 1 3 1 1 . . . . 2 2 1 4 1 . 1 . . . 1 1 3 9 Storage 12 | 1 1 . . . . . . . . . . 1 . . . . . . 3 . . . . 1 . 2 . 1 . . 1 1 Processor 5 | . . . . . . . . 1 . . . . . . . . . . . . 1 . . . . . . . . . 1 2 Hackware 4 | . . . . . . . . . . . . . . . . . . . . . . . . . . . . . 3 1 . . Protection 31 | . . . . . 5 1 . . . . . 6 1 1 1 2 . . 2 . . 1 1 2 . 2 . 1 1 . 2 2 Artifact . | . . . . . . . . . . . . . . . . . . . . . . . . . . . . . . . . . Weapon 51 | 2 1 . 1 . 8 4 4 1 . . 1 5 . . . 2 . . 3 . 1 5 . 1 1 . . 1 1 2 1 6 Energy Gun 24 | 2 . . . . 3 3 4 . . . . 4 . . . 1 . . 2 . 1 3 . . . . . . . . . 1 Energy Cannon 8 | . . . . . . . . . . . . 1 . . . . . . . . . 1 . 1 . . . 1 . 1 . 3 Ballistic Gun 8 | . 1 . 1 . 5 . . . . . . . . . . 1 . . . . . . . . . . . . . . . . Ballistic Cannon 3 | . . . . . . . . . . . . . . . . . . . . . . . . . 1 . . . . . . 2 Launcher 1 | . . . . . . . . 1 . . . . . . . . . . . . . . . . . . . . . . . . Special Weapon 3 | . . . . . . . . . . . 1 . . . . . . . . . . . . . . . . . 1 . 1 . Impact Weapon 2 | . . . . . . 1 . . . . . . . . . . . . . . . . . . . . . . . 1 . . Slashing Weapon 2 | . . . . . . . . . . . . . . . . . . . 1 . . 1 . . . . . . . . . . Piercing Weapon . | . . . . . . . . . . . . . . . . . . . . . . . . . . . . . . . . . Special Melee Weapon . | . . . . . . . . . . . . . . . . . . . . . . . . . . . . . . . . . Unidentified Prototypes 45 | . . . . 2 1 1 . 2 . . 1 9 . . . 3 . . 3 . . 5 1 . . 1 . . . 1 . 15 Corrupted Parts 2 | . . . . . . . . . . . . . . . . . . . . . 1 . . . 1 . . . . . . . System Corruption 5 | . . . . . . . . . . . . . . . . . . . . . 3 . . . 2 . . . . . . . Parts Lost 82 | . 1 1 . . 12 . . . . . . 12 1 1 . . 1 . 16 1 4 . 1 . . . . 1 . 2 9 19 Power 8 | . . . . . 2 . . . . . . 1 . . . . . . 2 . . . . . . . . . . . 1 2 Propulsion 15 | . . 1 . . 4 . . . . . . 2 . . . . 1 . 5 . 1 . . . . . . . . . . 1 Utility 32 | . . . . . 3 . . . . . . 5 1 . . . . . 4 1 . . . . . . . 1 . 1 8 8 Weapon 27 | . 1 . . . 3 . . . . . . 4 . 1 . . . . 5 . 3 . 1 . . . . . . 1 . 8 Highest Loss Streak 10 | . 1 1 . . 10 . . . . . . 3 1 1 . . 1 . 5 1 2 . 1 . . . . 1 . 2 2 10 To Critical Strikes 3 | . . . . . . . . . . . . . . . . . . . . . 1 . . . . . . . . . . 2 Average Backups 14 | 2 5 7 11 13 14 14 15 15 14 15 14 13 12 12 12 12 13 13 12 8 8 12 17 17 18 18 19 18 18 18 17 18 Power . | . 1 1 1 2 . . . . 1 1 1 . 1 1 1 1 2 2 1 . . . . . . . . . . . 1 . Propulsion 1 | 1 2 1 1 3 3 2 3 3 3 2 2 2 . . . . . . . . . 1 2 1 2 2 1 1 1 2 3 4 Utility 8 | . 1 2 2 4 6 3 5 4 3 4 4 6 9 9 9 9 9 9 8 7 7 9 12 14 15 15 16 15 14 14 11 11 Weapon 2 | . 1 2 4 2 2 7 6 6 6 6 6 2 2 2 2 2 2 2 1 1 . 1 2 1 1 1 1 1 2 1 . 2 Tool/Special . | . . . . . . . . . . . . . . . . . . . . . . . . . . . . . . . . . Unused Backups 35 | . . . 1 1 8 6 . 1 . . 1 . . . . 1 . . 2 . . . 1 2 . . . . 3 2 2 4 Power 4 | . . . . . 1 . . . . . . . . . . . . . 1 . . . . . . . . . . 1 . 1 Propulsion 7 | . . . . . 1 . . . . . . . . . . . . . 1 . . . . . . . . . 2 1 1 1 Utility 13 | . . . 1 . 5 . . . . . 1 . . . . 1 . . . . . . 1 2 . . . . 1 . 1 . Weapon 11 | . . . . 1 1 6 . 1 . . . . . . . . . . . . . . . . . . . . . . . 2 Tool/Special . | . . . . . . . . . . . . . . . . . . . . . . . . . . . . . . . . . Average Slot Usage (%) 91 | . 99 99 71 100 97 98 99 99 100 100 100 94 99 85 85 85 84 80 80 92 92 82 82 87 89 89 89 89 89 90 89 84 Engine 1 | . 14 14 14 14 8 7 1 . . . . . . . . . . . . . . . . . . . . . . . . . Core 1 | . . . . . . . . 3 7 7 7 . . . . . . . . . . . . . . . . . . . . . Reactor 4 | . . . . . . . 5 3 . . . 5 7 5 5 6 6 6 5 10 11 5 4 5 5 5 5 5 4 4 7 7 Treads 10 | . 27 24 14 26 26 29 30 30 30 30 30 14 . . . . . . 1 . . . . . . . . . . . . . Leg 15 | . . . . . . . . . . . . 15 30 26 26 26 24 20 22 28 27 28 29 26 26 26 26 26 23 21 19 17 Device 13 | . 14 14 14 14 9 9 15 13 14 15 15 7 7 6 6 6 6 6 11 11 13 10 10 15 17 16 15 15 19 21 23 22 Storage 10 | . 14 14 14 14 9 7 7 7 7 7 7 10 15 13 13 13 13 13 10 10 11 11 11 9 10 10 10 10 9 12 12 11 Protection 7 | . . . . . 8 11 7 7 7 7 7 7 6 5 6 5 6 6 4 5 1 5 4 8 7 9 10 10 9 12 11 10 Energy Gun 8 | . 27 14 . . 13 12 25 28 30 30 29 17 . . . 5 6 6 3 . 3 2 . . . . . . . . . . Energy Cannon 10 | . . . . . . . . . . . . 7 23 19 20 19 20 20 15 17 17 13 17 20 18 15 15 15 14 13 12 10 Ballistic Gun 2 | . . 14 . 28 21 15 4 . . . . . . . . . . . . . . . . . . . . . . . . . Peak Build Rating 230 | 7 7 8 10 20 47 55 67 67 70 70 70 109 115 131 126 135 135 128 144 127 127 154 154 171 169 172 168 169 184 205 220 230 Average Rating 115 | 5 6 7 6 12 41 52 62 65 68 66 67 81 108 126 125 133 131 125 130 120 119 133 143 165 168 167 168 166 174 198 210 211 On Entrance 103 | . 7 7 8 10 13 44 54 67 64 66 68 68 109 110 124 126 135 125 128 127 125 127 154 143 167 168 168 168 163 174 195 205 Avg Prop Armor Cover (%) 9 | 13 . 13 18 13 16 . . . 6 . . 1 . . . . . . 7 . . . . . . . . . . . 8 . Naked Turns . | . . . . . . . . . . . . . . . . . . . . . . . . . . . . . . . . . Heaviest Build 188 | 13 28 28 28 31 54 60 66 66 58 64 64 99 89 119 119 119 119 119 120 104 104 155 145 149 149 148 148 152 163 162 188 179 Greatest Support 170 | 10 40 40 10 43 84 104 104 104 104 112 112 120 120 120 120 120 120 90 125 110 115 145 145 165 170 170 170 170 170 168 170 170 Greatest Overweight (x) 11 | 1 1 2 2 2 3 1 . . . . . . . 1 . . 1 1 11 1 1 1 . . . . . . 1 1 1 1 Average Overweight (x) . | . . . 2 . . . . . . . . . . . . . . 1 . . . . . . . . . . . . . . Largest Inventory Capacity 20 | 8 15 15 15 15 15 15 15 15 15 15 15 15 15 15 15 15 15 15 20 10 10 20 20 20 20 20 20 20 20 20 20 20 Average Capacity 16 | 7 14 15 15 15 15 15 15 15 15 15 15 15 15 15 15 15 15 15 14 10 10 17 20 19 20 20 20 20 20 20 20 19 Most Carried 20 | 5 7 8 14 15 15 15 15 15 15 15 15 15 15 15 15 15 15 15 15 10 10 20 20 20 20 20 20 20 20 20 20 20 Average Carried 15 | 3 5 7 11 13 14 14 15 14 14 14 14 14 15 14 14 14 15 15 14 9 9 15 19 18 19 19 20 19 19 19 18 19 Final Capacity 20 | 8 15 15 15 15 15 15 15 15 15 15 15 15 15 15 15 15 15 15 10 10 10 20 20 20 20 20 20 20 20 20 20 5 Final Carried 20 | 5 6 7 11 15 15 15 15 15 15 15 15 15 15 15 15 15 15 15 10 10 9 20 19 20 20 20 20 20 20 20 20 1 Class Distribution -------------------- 38% | Golem 15% | Scavenger-Golem 13% | Derelict-Tank 9% | Tank 6% | Mutant 5% | Skirmisher 3% | Commander-Golem Dominant Class ---------------- Mutant | -10/Materials Mutant | -10/Mines Mutant | -10/Exiles Mutant | -9/Mines Skirmisher | -8/Materials Scavenger-Skirmisher | -7/Factory Derelict-Skirmisher | -7/Waste Derelict-Skirmisher | -7/Factory Derelict-Tank | -7/Lower Caves Derelict-Tank | -7/Lower Caves Derelict-Tank | -7/Zion Tank | -7/Deep Caves Tank | -6/Proximity Caves Golem | -6/Factory Golem | -6/Extension Commander-Golem | -6/Cetus Commander-Golem | -6/Archives Golem | -6/Hub_04(d) Scavenger-Golem | -5/Factory Scavenger-Golem | -5/Upper Caves Scavenger-Golem | -5/Upper Caves Golem | -5/Warlord Golem | -4/Proximity Caves Golem | -4/Factory Golem | -4/Waste Golem | -4/Factory Golem | -4/DSF Golem | -4/Garrison Golem | -3/Research Golem | -2/Research Scavenger-Golem | -1/Access Golem | -1/Command Resources | -11 -10 -10 -10 -9 -8 -7 -7 -7 -7 -7 -7 -7 -6 -6 -6 -6 -6 -6 -5 -5 -5 -5 -4 -4 -4 -4 -4 -4 -3 -2 -1 -1 ----------- Run | Yrd Mat Min Exi Min Mat Fac Was Fac Low Low Zio Dee Pro Fac Ext Cet Arc Hub Fac Upp Upp War Pro Fac Was Fac DSF Gar Res Res Acc Com Matter Collected 6230 | 260 60 50 20 30 886 112 253 80 40 70 50 725 98 75 26 48 . 3 554 157 203 287 79 100 30 80 69 430 240 134 488 493 Remotely . | . . . . . . . . . . . . . . . . . . . . . . . . . . . . . . . . . Salvage Created 21975 | 104 84 174 . . 1463 253 51 108 297 610 . 1136 262 576 1125 205 . 54 3216 316 533 971 542 88 1147 . 357 1394 177 991 4271 1470 Parts 911 | 4 6 21 . . 89 13 2 6 13 14 . 24 8 42 47 16 . 3 125 11 31 30 28 3 7 . 16 72 6 31 220 23 Haulers Intercepted 8 | . . . . . 2 . 1 1 . . . . . . . . . . 3 . . . . . . . . . 1 . . . Recyclers Shooed 5 | . . 1 . . 1 . . . . . . . . . . . . . 3 . . . . . . . . . . . . . Parts Field Recycled . | . . . . . . . . . . . . . . . . . . . . . . . . . . . . . . . . . Retrieved Matter . | . . . . . . . . . . . . . . . . . . . . . . . . . . . . . . . . . Parts Self-Destructed 112 | . . . . . . . . . 22 14 7 . 8 . . . . . . 8 27 . 26 . . . . . . . . . Prevented 7 | . . . . . . . . . . 1 . . 1 . . . . . . . 4 . 1 . . . . . . . . . Parts Restored . | . . . . . . . . . . . . . . . . . . . . . . . . . . . . . . . . . Kills | -11 -10 -10 -10 -9 -8 -7 -7 -7 -7 -7 -7 -7 -6 -6 -6 -6 -6 -6 -5 -5 -5 -5 -4 -4 -4 -4 -4 -4 -3 -2 -1 -1 ------- Run | Yrd Mat Min Exi Min Mat Fac Was Fac Low Low Zio Dee Pro Fac Ext Cet Arc Hub Fac Upp Upp War Pro Fac Was Fac DSF Gar Res Res Acc Com Combat Hostiles Destroyed 339 | . 4 10 . . 24 4 . 1 5 10 . 57 6 9 12 3 . 1 35 5 12 11 6 1 6 . 4 28 1 12 60 12 Melee 3 | . . . . . . . . . . . . . . . . . . . 3 . . . . . . . . . . . . . Guns 69 | . 4 10 . . 24 4 . 1 4 9 . 7 . . . . . . 1 . 1 4 . . . . . . . . . . Cannons 197 | . . . . . . . . . . . . . 4 8 12 3 . 1 25 4 11 5 6 1 6 . 4 28 1 11 59 8 AOE 56 | . . . . . . . . . . . . 47 2 . . . . . 5 . . 2 . . . . . . . . . . Classes Destroyed 32 | 2 2 1 . . 6 2 . 1 1 2 . 3 1 1 . . . . . 1 . 4 . . 1 . 2 . 1 . . 1 Worker 8 | . . . . . 2 1 . . . . . . . . 1 . . . 1 . . . . . . . . . . . 1 2 Builder 9 | . . . . . 1 . . . . . . . . 1 . . . . 5 . . . . . . . . . . . 2 . Tunneler 2 | 1 . . . . 1 . . . . . . . . . . . . . . . . . . . . . . . . . . . Hauler 8 | . . . . . 2 . 1 1 . . . . . . . . . . 3 . . . . . . . . . 1 . . . Recycler 10 | 1 . 1 . . . . . . . . . . . . 1 . . . 7 . . . . . . . . . . . . . Minesweeper 2 | . . . . . . . . . 1 . . . 1 . . . . . . . . . . . . . . . . . . . Mechanic 1 | . . . . . . . . . . . . . . . . . . . . . . 1 . . . . . . . . . . Operator 7 | . . . . . 3 . . . . . . . . . 2 . . . 1 . . . . . . . . . 1 . . . Drone 2 | . . . . . . . . . . . . . 2 . . . . . . . . . . . . . . . . . . . Watcher 11 | . . . . . . 1 . . . . . . . 1 1 . . . 3 . . . . . . . . . . . 4 1 Swarmer 50 | . 3 8 . . . . . . . . . . . . . . . . 6 1 6 . . . 1 . . 11 . 1 13 . Grunt 87 | . 1 . . . 15 . . . 2 1 . . 2 . 2 . . 1 11 1 4 4 3 . . . . 10 . 8 20 2 Brawler 8 | . . . . . . . . 1 . 1 . . . . 2 . . . 1 . . 1 . . . . . . . . 2 . Duelist 3 | . . . . . . . . . . 1 . . . . . . . . 1 . . . . . . . . . . 1 . . Protector 4 | . . . . . . . . . . . . . . . . . . . . . . 3 . . . . . . . . 1 . Sentry 29 | . . . . . 7 1 . . 1 1 . . 1 2 5 . . . 5 1 . . 1 1 . . . 2 . . 1 . Demolisher 1 | . . . . . . . . . . . . . . . . . . . . . . 1 . . . . . . . . . . Specialist 2 | . . . . . . . . . . . . . . . . . . . . . . . . . . . 2 . . . . . Hunter 18 | . . . . . 2 1 . . 1 1 . . . 2 . . . . 2 . 2 . . . . . 1 . . . 5 1 Programmer 45 | . . . . . . 2 . . 1 . . . 1 4 . . . . 9 2 . 1 2 . . . . 4 . . 18 1 Heavy 1 | . . . . . . . . . . . . . . . . . . . . . . . . . . . 1 . . . . . Behemoth 4 | . . . . . . . . . . . . . . 1 2 . . . . . . . . . . . . 1 . . . . Compactor 5 | . . . . . . . . . . . . . . . . . . . . . . . . . 5 . . . . . . . Cetus Guard 3 | . . . . . . . . . . . . . . . . 3 . . . . . . . . . . . . . . . . M Guard 2 | . . . . . . . . . . . . . . . . . . . . . . . . . . . . . . . . 2 Enhanced Q-Series 4 | . . . . . . . . . . . . . . . . . . . . . . . . . . . . . . . . 4 Combat Programmer 1 | . . . . . . . . . . . . . . . . . . . . . . . . . . . . . . . . 1 Striker 1 | . . . . . . . . . . . . . . . . . . . . . . . . . . . . . 1 . . . Executioner 3 | . . . . . . . . . . . . . . . . . . . . . . 1 . . . . . . . 2 . . Z-Light 10 | . . . . . . . . . . . . 10 . . . . . . . . . . . . . . . . . . . . Samaritan 1 | . . . . . . . . . . . . . . . . . . . . 1 . . . . . . . . . . . . Assembler 2 | . . . . . . . . . . . . 2 . . . . . . . . . . . . . . . . . . . . Assembled 45 | . . 2 . . . . . . . . . 43 . . . . . . . . . . . . . . . . . . . . Golem 3 | . . . . . . . . . . . . 3 . . . . . . . . . . . . . . . . . . . . Thug 8 | . . . . . . . . . . 1 . . . . 2 . . . . . . 5 . . . . . . . . . . Savage 4 | . . . . . . . . . . 3 . . . . . . . . . . . 1 . . . . . . . . . . Butcher 2 | . . . . . . . . . . . . . . . . . . . . . . 2 . . . . . . . . . . Marauder 1 | . . . . . . . . . . . . . . . . . . . . . . 1 . . . . . . . . . . Mutant 1 | . . . . . . . . . . 1 . . . . . . . . . . . . . . . . . . . . . . Best Kill Streak 42 | 2 3 3 . . 7 3 1 1 2 4 . 42 2 4 5 3 . 1 9 2 5 5 2 1 2 . 2 10 1 8 7 3 Combat Bots Only 40 | . 3 3 . . 5 1 . 1 2 4 . 40 2 4 4 3 . 1 7 2 5 5 2 1 2 . 2 10 1 8 7 2 Max Kills in Single Turn 35 | 1 1 1 . . 2 1 1 1 1 1 . 35 2 1 2 1 . 1 5 1 1 7 1 1 1 . 1 2 1 2 2 1 Gunslinging . | . . . . . . . . . . . . . . . . . . . . . . . . . . . . . . . . . Exploded 35 | . . . . . . . . . . . . 35 2 . . . . . 5 . . 2 . . . . . . . . . . Melee 1 | . . . . . . . . . . . . . . . . . . . 1 . . . . . . . . . . . . . Uniques/NPCs Destroyed 2 | . . . . . . . . . . . . 1 . . . . . . . . . . . . . . . . . . . 1 Z-Imprinter (-7/Deep Caves) MAIN.C Shell (-1/Command) Combat | -11 -10 -10 -10 -9 -8 -7 -7 -7 -7 -7 -7 -7 -6 -6 -6 -6 -6 -6 -5 -5 -5 -5 -4 -4 -4 -4 -4 -4 -3 -2 -1 -1 -------- Run | Yrd Mat Min Exi Min Mat Fac Was Fac Low Low Zio Dee Pro Fac Ext Cet Arc Hub Fac Upp Upp War Pro Fac Was Fac DSF Gar Res Res Acc Com Hostile Shots Fired 2285 | . 21 41 . . 140 22 . 1 23 68 . 131 25 98 111 23 18 . 289 24 79 65 22 4 . . 37 221 4 99 353 366 Missed 859 | . 4 11 . . 29 9 . 1 7 21 . 38 11 31 48 10 12 . 78 8 22 20 8 3 . . 16 100 1 50 147 174 Intercepted 9 | . . . . . . . . . . . . . . . . . . . . . . . . . . . . . . . . 9 Hits 1426 | . 17 30 . . 111 13 . . 16 47 . 93 14 67 63 13 6 . 211 16 57 45 14 1 . . 21 121 3 49 206 192 Melee 16 | . . 9 . . . . . . . . . 2 . . . . . . . . . 2 . . . . . . . . 3 . Projectile 1410 | . 17 21 . . 111 13 . . 16 47 . 91 14 67 63 13 6 . 211 16 57 43 14 1 . . 21 121 3 49 203 192 AOE 37 | . . . . . . 1 . . . . . . . . . . . . . . . 22 . . . . . . . . . 14 Critical Strikes 62 | . . 1 . . 5 . . . . 2 . . 1 2 . 3 . . 5 . 2 4 . . . . . 5 . 3 15 14 Part Disruptions 6 | . . . . . . . . . 1 . . . . . . . . . . . . . . . . . . . . . 3 2 Damage Taken 30013 | . 160 407 . . 1688 168 . 16 242 739 . 2728 213 1469 746 354 632 . 4256 343 958 1389 300 19 . . 449 1835 96 972 3557 6277 Core 3419 | . 7 89 . . 271 28 . . 20 54 . 220 37 121 61 . 6 . 434 21 57 68 45 . . . . 156 21 98 108 1497 Absorbed by Shields 1122 | . . . . . . . . . . . . . . . 17 106 . . . . . 450 . . . . . 36 11 51 345 106 Redirected to Shielding 133 | . . . . . . . . . . . . 133 . . . . . . . . . . . . . . . . . . . . Ignored by Resistances 3083 | . . . . . 46 4 . . 21 62 . 243 . . . . . . . . . . . 4 . . 89 404 22 201 787 1200 Regen/Repaired (Parts) 1110 | . . . . . . . 82 . 51 348 . 537 . . . . . . . . . . . . . . . . 57 . 35 . Core Remaining (%) 72 | 100 . . . 61 50 . . . . . . . 48 . . . . 77 . . . . 37 . . . . 86 98 93 . . Volleys Fired 951 | 6 9 31 . . 78 10 1 4 11 30 . 43 20 51 53 11 . 1 116 16 26 22 13 4 25 . 10 66 13 26 179 76 Largest 4 | 2 2 2 . . 4 4 4 4 4 4 . 4 3 3 3 4 . 4 4 3 4 4 4 3 4 . 4 4 4 3 4 4 Hottest 324 | 80 80 60 . . 252 200 200 324 324 324 . 324 75 75 75 155 . 155 156 75 144 140 120 75 125 . 130 130 130 138 125 265 Shots Fired 2670 | 12 18 58 . 1 244 40 4 16 43 111 . 125 55 101 121 34 . 4 312 50 93 82 40 10 93 . 38 214 28 74 444 205 Gun 770 | 12 18 58 . 1 244 40 4 16 43 111 . 108 . . . 3 . 1 53 . 18 39 1 . . . . . . . . . Cannon 1877 | . . . . . . . . . . . . 6 54 101 121 31 . 3 258 50 75 43 39 10 93 . 38 214 23 72 443 203 Launcher 13 | . . . . . . . . . . . . 11 1 . . . . . 1 . . . . . . . . . . . . . Special 10 | . . . . . . . . . . . . . . . . . . . . . . . . . . . . . 5 2 1 2 Kinetic 293 | . . 31 . 1 181 20 2 . . . . . . . . . . . . . . . . . 2 . 10 32 3 . . 11 Thermal 2176 | 12 18 27 . . 63 20 2 16 43 111 . 31 54 101 121 34 . 4 306 50 91 43 39 10 69 . 28 177 20 66 428 192 Explosive 13 | . . . . . . . . . . . . 11 1 . . . . . 1 . . . . . . . . . . . . . Electromagnetic 96 | . . . . . . . . . . . . 83 . . . . . . 5 . 2 . . . . . . . . 6 . . Entropic 82 | . . . . . . . . . . . . . . . . . . . . . . 39 1 . 22 . . 5 . . 15 . Robot Hit Streak 30 | 4 5 7 . 3 21 9 10 3 7 8 . 14 10 23 18 10 . 4 30 11 7 6 10 8 22 . 2 22 9 14 16 25 Robot Miss Streak 7 | 3 2 4 . . 4 1 . 3 2 3 . 5 3 2 2 3 . 1 3 3 5 4 1 . 2 . 4 4 2 4 7 4 Penetration Max 3 | . . . . . 1 . . . . . . . . . . . . . . . . 3 . . . . . . . . . . Secondary Targets 7 | . . 1 . . 3 . . . . 2 . 1 . . . . . . . . . . . . . . . . . . . . Max Gunslinging Chain 1 | . . 1 . . 1 . . . . 1 . 1 . . . . . . . . . . . . . . . . . . . . Shots Hit Robots 1494 | 7 12 29 . 1 148 26 1 7 25 70 . 80 21 56 70 25 . 2 174 26 24 46 25 7 66 . 10 105 16 45 210 160 Core Hits 802 | 3 5 14 . 1 68 11 1 3 10 23 . 190 6 13 26 12 . 1 98 7 16 39 11 2 11 . 9 41 3 20 106 52 Critical Kills 4 | . . . . . 1 . . . . . . . . . . . . . . . . . . . . . . . . . . 3 Critical Parts Destroyed 7 | . . . . . 2 . . . . . . . . 1 . . . . . . . 4 . . . . . . . . . . Critical Strikes 35 | . . . . . 5 . . 3 4 5 . 2 . 1 . . . . 4 . . 4 . . 1 . . 1 . . 1 4 Burn 18 | . . . . . 2 . . 3 4 5 . 2 . . . . . . 2 . . . . . . . . . . . . . Meltdown 3 | . . . . . . . . . . . . . . . . . . . . . . . . . . . . . . . . 3 Destroy 3 | . . . . . 3 . . . . . . . . . . . . . . . . . . . . . . . . . . . Blast 1 | . . . . . . . . . . . . . . . . . . . . . . . . . . . . . . . . 1 Smash 1 | . . . . . . . . . . . . . . 1 . . . . . . . . . . . . . . . . . . Sever 2 | . . . . . . . . . . . . . . . . . . . 2 . . . . . . . . . . . . . Detonate 4 | . . . . . . . . . . . . . . . . . . . . . . 4 . . . . . . . . . . Sunder 3 | . . . . . . . . . . . . . . . . . . . . . . . . . 1 . . 1 . . 1 . Melee Attacks 27 | . . . . . . 4 . 4 . . . 5 . 1 . . . . 13 . . . . . . . . . . . . . Impact 14 | . . . . . . 4 . 4 . . . 5 . 1 . . . . . . . . . . . . . . . . . . Slashing 13 | . . . . . . . . . . . . . . . . . . . 13 . . . . . . . . . . . . . Piercing . | . . . . . . . . . . . . . . . . . . . . . . . . . . . . . . . . . Sneak Attacks 3 | . . . . . . . . . . . . . . . . . . . 3 . . . . . . . . . . . . . Combat Hostiles . | . . . . . . . . . . . . . . . . . . . . . . . . . . . . . . . . . Follow-up Attacks . | . . . . . . . . . . . . . . . . . . . . . . . . . . . . . . . . . Damage Inflicted 68248 | 76 132 282 . 15 2417 601 18 160 646 1736 . 5596 1069 2758 3358 1240 . 47 9852 1417 1012 4555 1129 309 3734 . 701 4995 617 2096 10772 6908 Guns 9989 | 76 132 267 . 7 2409 595 18 160 646 1736 . 1239 . . . 44 . . 764 . 133 1731 32 . . . . . . . . . Cannons 49615 | . . . . . . . . . . . . . 996 2703 3235 1196 . 47 6893 1417 876 1261 1097 309 3734 . 701 4995 608 1923 10730 6894 Explosions 7512 | . . . . . . . . . . . . 4262 73 . . . . . 1438 . 3 1563 . . . . . . . 173 . . Melee 804 | . . . . . . . . . . . . 95 . 55 . . . . 654 . . . . . . . . . . . . . Ramming 328 | . . 15 . 8 8 6 . . . . . . . . 123 . . . 103 . . . . . . . . . 9 . 42 14 Kinetic 3433 | . . 103 . 7 1607 236 . . . . . . . . . . . . . . . . . . . . 146 433 66 . . 835 Thermal 54019 | 76 132 164 . . 802 359 18 160 646 1736 . 752 996 2703 3235 1240 . 47 7644 1417 1009 2824 1097 309 2677 . 555 4282 542 1939 10599 6059 Explosive 4494 | . . . . . . . . . . . . 3857 73 . . . . . 564 . . . . . . . . . . . . . Electromagnetic 1939 | . . . . . . . . . . . . 892 . . . . . . 887 . 3 . . . . . . . . 157 . . Impact 150 | . . . . . . . . . . . . 95 . 55 . . . . . . . . . . . . . . . . . . Slashing 654 | . . . . . . . . . . . . . . . . . . . 654 . . . . . . . . . . . . . Piercing . | . . . . . . . . . . . . . . . . . . . . . . . . . . . . . . . . . Entropic 3231 | . . . . . . . . . . . . . . . . . . . . . . 1731 32 . 1057 . . 280 . . 131 . Highest Corruption 32 | . . 1 1 1 . . . . . . . . 1 1 1 1 1 1 26 26 32 32 2 . 30 30 30 31 . . 18 26 Average Corruption 12 | . . 1 1 1 . . . . . . . . 1 1 1 1 1 1 14 26 27 6 1 . 14 30 30 30 . . 6 20 Corruption Purged 28 | . . . . . . . . . . . . . . . . . . . . . . . . . . . . . . . . 28 Corruption Blocked . | . . . . . . . . . . . . . . . . . . . . . . . . . . . . . . . . . Effects 497 | . . 1 5 8 . . . . . . . . 4 2 11 4 . 1 91 66 47 4 9 . 19 9 10 78 . . 62 66 Message Errors 111 | . . 1 1 3 . . . . . . . . . . 3 1 . . 20 16 8 . 1 . 4 1 4 20 . . 16 12 Matter Fused 106 | . . . 1 3 . . . . . . . . 2 . 3 2 . . 22 11 15 . 3 . 2 3 1 13 . . 13 12 Heat Flow Errors 59 | . . . 1 . . . . . . . . . . . 2 . . . 12 7 4 1 1 . 4 2 1 11 . . 4 9 Energy Discharges 62 | . . . . 1 . . . . . . . . . . 2 . . 1 12 8 4 1 1 . 4 3 . 10 . . 9 6 Parts Rejected 5 | . . . . . . . . . . . . . . . . . . . . 1 . . . . . . . 1 . . . 3 Parts Fused 7 | . . . . . . . . . . . . . . . . . . . 1 2 2 . . . . . . 1 . . . 1 Data Loss (minor) 47 | . . . 2 . . . . . . . . . . 1 . 1 . . 9 9 2 2 . . 1 . . 7 . . 4 9 Data Loss (major) 14 | . . . . . . . . . . . . . 1 . 1 . . . 1 6 1 . 1 . . . . . . . 3 . Misfires 22 | . . . . 1 . . . . . . . . 1 . . . . . 2 4 . . 1 . 1 . 1 4 . . 6 1 Alerts 9 | . . . . . . . . . . . . . . . . . . . 1 . 3 . . . . . . . . . 1 4 Misdirections 6 | . . . . . . . . . . . . . . . . . . . 2 . 2 . . . . . . 1 . . . 1 Weapon Failures 49 | . . . . . . . . . . . . . . 1 . . . . 9 2 6 . 1 . 3 . 3 10 . . 6 8 Overload Shots . | . . . . . . . . . . . . . . . . . . . . . . . . . . . . . . . . . Overflow Damage 2679 | . . . . . . . . . . . . 153 184 245 96 . . . 644 132 33 111 49 . 22 . 22 184 61 11 714 18 Projectiles 2285 | . . . . . . . . . . . . . 184 190 91 . . . 489 132 33 89 49 . 22 . 22 184 61 7 714 18 Explosions 97 | . . . . . . . . . . . . 63 . . . . . . 8 . . 22 . . . . . . . 4 . . Melee 297 | . . . . . . . . . . . . 90 . 55 5 . . . 147 . . . . . . . . . . . . . Knockbacks 15 | . . . . . . . . . . . . . . . 2 . . . 1 . . . . . . . . 1 . . 1 10 Impact 4 | . . . . . . . . . . . . . . . 2 . . . 1 . . . . . . . . . . . 1 . Kinetic 11 | . . . . . . . . . . . . . . . . . . . . . . . . . . . . 1 . . . 10 Secondary . | . . . . . . . . . . . . . . . . . . . . . . . . . . . . . . . . . Self-Inflicted Damage 431 | . . . . . . . . . . . . 240 19 . . . . . 23 . . 76 . . . . . . . 46 27 . Shots 12 | . . . . . . . . . . . . 7 1 . . . . . 1 . . 1 . . . . . . . 1 1 . Rammed 8 | . . 1 . 3 3 1 . . . . . . . . . . . . . . . . . . . . . . . . . . Targets Rammed 26 | . . 2 . 3 3 1 . . . . . . . . 6 . . . 7 . . . . . . . . . 1 . 2 1 Kicked 17 | . . . . . . . . . . . . . . . 6 . . . 7 . . . . . . . . . 1 . 2 1 Crushed 1 | . . 1 . . . . . . . . . . . . . . . . . . . . . . . . . . . . . . Highest Temperature 597 | 72 108 60 178 2 357 156 27 240 354 282 . 247 117 345 268 135 . 72 261 416 304 205 88 . 228 221 162 244 . 2 254 597 Average Temperature 89 | 32 50 26 98 2 84 46 18 102 145 105 . 73 44 28 39 44 . 41 42 141 111 43 30 . 118 95 109 63 . 2 95 174 Received Heat Transfer 5595 | . 54 . . . 747 12 . . 63 207 . 672 30 498 144 31 . . 1194 27 129 82 30 9 . . . 228 13 207 443 775 Effects 21 | . . . . . 2 . . . 1 . . . . . . . . . . 5 1 . . . . . . 1 . . . 11 Shutdowns 1 | . . . . . . . . . . . . . . . . . . . . . . . . . . . . . . . . 1 Energy Bleed 6 | . . . . . 2 . . . . . . . . . . . . . . 1 1 . . . . . . . . . . 2 Interference 5 | . . . . . . . . . . . . . . . . . . . . 2 . . . . . . . 1 . . . 2 Short Circuit 3 | . . . . . . . . . 1 . . . . . . . . . . 1 . . . . . . . . . . . 1 Damage (major) 5 | . . . . . . . . . . . . . . . . . . . . 1 . . . . . . . . . . . 4 Damage (core) 1 | . . . . . . . . . . . . . . . . . . . . . . . . . . . . . . . . 1 Siege Activations . | . . . . . . . . . . . . . . . . . . . . . . . . . . . . . . . . . Martial Activations . | . . . . . . . . . . . . . . . . . . . . . . . . . . . . . . . . . Shielding Activations . | . . . . . . . . . . . . . . . . . . . . . . . . . . . . . . . . . Robots Disrupted . | . . . . . . . . . . . . . . . . . . . . . . . . . . . . . . . . . Combat Hostiles . | . . . . . . . . . . . . . . . . . . . . . . . . . . . . . . . . . Robots Corrupted 7 | . . . . . . . . . . . . 3 . 1 1 . . . 2 . . . . . . . . . . . . . Combat Hostiles 5 | . . . . . . . . . . . . 3 . 1 . . . . 1 . . . . . . . . . . . . . Parts Fried 13 | . . . . . . . . . . . . 6 . 1 1 . . . 4 . 1 . . . . . . . . . . . Impact Corruptions 8 | . . . . . . . . . . . . 4 . 1 2 . . . 1 . . . . . . . . . . . . . Robots Melted 10 | . . . . . . . . . 1 1 . . . . . . . . . 1 . 1 . . . . . . . 1 1 4 Combat Hostiles 9 | . . . . . . . . . 1 1 . . . . . . . . . 1 . . . . . . . . . 1 1 4 Parts Melted 58 | . . . . . 2 4 . . 5 8 . . 1 . . . . . 5 3 . 8 1 . . . . 2 1 2 6 10 Heat Transferred 35572 | 175 300 375 . . 1749 683 37 481 1295 3145 . 751 500 1350 1725 706 . 25 4784 700 709 1535 575 175 1475 . 300 2325 253 1075 5460 2909 Parts Sabotaged 2 | . . . . . . . . . . . . . . . . . . . . . . . . . . . . . . . 2 . Parts Stolen . | . . . . . . . . . . . . . . . . . . . . . . . . . . . . . . . . . Parts Stripped . | . . . . . . . . . . . . . . . . . . . . . . . . . . . . . . . . . Power Chain Reactions 4 | . . . . . . . . . . . . 3 . . . . . . . . . . . . . . . . . 1 . . Latent Energy Used 596 | . . . . . . . . . . . . . . . . . . . 503 . 93 . . . . . . . . . . . LE Corruption 13 | . . . . . . . . . . . . . . . . . . . 10 . 3 . . . . . . . . . . . Alert | -11 -10 -10 -10 -9 -8 -7 -7 -7 -7 -7 -7 -7 -6 -6 -6 -6 -6 -6 -5 -5 -5 -5 -4 -4 -4 -4 -4 -4 -3 -2 -1 -1 ------- Run | Yrd Mat Min Exi Min Mat Fac Was Fac Low Low Zio Dee Pro Fac Ext Cet Arc Hub Fac Upp Upp War Pro Fac Was Fac DSF Gar Res Res Acc Com Maximum Alert Level 4 | . . . . . 1 . . 2 . . . . . . 2 1 . . 3 . . . . . . . . 3 2 1 4 4 Low Security (%) 60 | 100 100 100 . 100 80 100 100 63 . . . . . 100 65 1 100 100 51 . . . . 100 100 100 100 19 15 94 2 30 Level 1 16 | . . . . . 19 . . 11 . . . . . . 27 98 . . 33 . . . . . . . . 3 51 5 20 . Level 2 7 | . . . . . . . . 25 . . . . . . 7 . . . 3 . . . . . . . . 30 33 . 18 . Level 3 11 | . . . . . . . . . . . . . . . . . . . 10 . . . . . . . . 45 . . 28 65 Level 4 4 | . . . . . . . . . . . . . . . . . . . . . . . . . . . . . . . 30 4 Level 5 . | . . . . . . . . . . . . . . . . . . . . . . . . . . . . . . . . . High Security . | . . . . . . . . . . . . . . . . . . . . . . . . . . . . . . . . . Max Security . | . . . . . . . . . . . . . . . . . . . . . . . . . . . . . . . . . Peak Influence 1476 | 5 60 70 . . 221 91 10 635 . . . . . 156 431 376 171 37 959 . . . . 47 26 14 122 997 567 264 1476 1131 Initial 944 | . 3 . . . . 91 . . . . . . . . 39 227 115 17 7 . . . . . 10 . 4 91 560 95 148 944 Average 263 | 1 12 18 . . 97 14 . 199 . . . . . 50 123 295 95 6 230 . . . . 4 2 1 67 587 339 76 785 787 Influence Increases 11572 | 10 120 185 . . 849 159 10 885 386 203 . . 190 375 921 367 126 43 1564 140 285 180 145 52 56 20 158 916 68 556 2112 491 Destroy 0b10 Robot/C 6180 | . 80 160 . . 500 80 . 300 220 160 . . 80 180 480 160 60 20 720 100 240 160 120 20 20 . 100 560 20 240 1180 220 Destroy 0b10 Robot/NC 370 | 10 . 5 . . 45 15 5 20 5 . . . 15 10 30 10 . . 100 . . 20 5 . . . 5 . 10 . 40 20 Destroy Leader 1054 | . 10 20 . . 144 42 . 64 40 10 . . 20 92 44 . . . 152 10 30 . 20 10 . . 10 50 2 40 198 46 Allied During Kill 974 | . . . . . 4 1 5 371 76 18 . . . . 174 165 50 . 5 . . . . . . . 11 . . . . 94 Successful Hack 250 | . . . . . 59 16 . . . . . . . 31 35 8 . 6 30 . . . . 3 . 20 . . 16 . 26 . Select Force Hacks 30 | . 30 . . . . . . . . . . . . . . . . . . . . . . . . . . . . . . . Disable Machine 570 | . . . . . 30 . . 105 . . . . . 30 120 . 15 15 120 . . . . 15 . . . 30 . . 75 15 Anti-Garrison Action 150 | . . . . . . . . . . . . . . . . . . . . . . . . . . . . 150 . . . . Destroy Structure 1229 | . . . . . 7 5 . 25 . . . . . 32 38 24 1 2 302 . . . . 4 36 . 32 111 20 36 458 96 Lose Combat Pursuer 765 | . . . . . 60 . . . 45 15 . . 75 . . . . . 135 30 15 . . . . . . 15 . 240 135 . Influence Decreases 10691 | 5 125 185 . . 648 360 10 389 596 489 . . 190 293 596 486 363 77 626 848 432 194 231 21 87 14 42 41 895 477 885 1086 Entered New Map 2578 | . 2 . . . . 110 . . 184 55 . . . . 43 180 173 34 10 354 48 100 86 . 21 . 2 31 437 75 101 532 Time Decay 6898 | 5 113 175 . . 570 250 10 239 392 374 . . 190 283 406 286 60 43 456 474 334 94 135 21 66 14 . . 458 382 694 374 Lost Part 500 | . 10 10 . . 40 . . . . . . . . 10 . . 10 . 160 10 40 . 10 . . . . 10 . 20 90 80 Lost Ally 693 | . . . . . 38 . . 150 20 60 . . . . 125 20 120 . . 10 10 . . . . . 40 . . . . 100 Purge Threat 22 | . . . . . . . . . . . . . . . 22 . . . . . . . . . . . . . . . . . Squads Dispatched 70 | . 2 . . . 2 2 . 6 . 1 . . . 4 1 . . . 18 . 1 . . 1 . . 2 . 5 . 17 8 Investigation 9 | . 1 . . . . . . 1 . . . . . 1 . . . . 2 . . . . . . . . . 2 . 1 1 Extermination 21 | . . . . . . 2 . 1 . . . . . 3 . . . . 4 . . . . 1 . . . . . . 8 2 Reinforcement 21 | . 1 . . . 2 . . 1 . . . . . . 1 . . . 4 . . . . . . . 2 . 3 . 4 3 Assault 8 | . . . . . . . . . . 1 . . . . . . . . . . 1 . . . . . . . . . 4 2 Garrison 11 | . . . . . . . . 3 . . . . . . . . . . 8 . . . . . . . . . . . . . Intercept . | . . . . . . . . . . . . . . . . . . . . . . . . . . . . . . . . . Searches Triggered . | . . . . . . . . . . . . . . . . . . . . . . . . . . . . . . . . . Construction Impeded 4 | . . . . . 1 . . . . . . . . . 1 . . . 1 . . . . . . . . . . . 1 . Haulers Reinforced 3 | . . . . . . . . . . . . . . . . . . . 1 . . . . . . . . . 2 . . . Active Scanning Responses . | . . . . . . . . . . . . . . . . . . . . . . . . . . . . . . . . . Cargo Convoy Interrupts . | . . . . . . . . . . . . . . . . . . . . . . . . . . . . . . . . . Stealth | -11 -10 -10 -10 -9 -8 -7 -7 -7 -7 -7 -7 -7 -6 -6 -6 -6 -6 -6 -5 -5 -5 -5 -4 -4 -4 -4 -4 -4 -3 -2 -1 -1 --------- Run | Yrd Mat Min Exi Min Mat Fac Was Fac Low Low Zio Dee Pro Fac Ext Cet Arc Hub Fac Upp Upp War Pro Fac Was Fac DSF Gar Res Res Acc Com Distress Signals 42 | . 1 . . . 3 1 . . . . . . . . 3 2 . 1 2 . . 1 . . . . . . 8 9 5 6 Communications Jammed 39 | . . . . . . . . . . . . . . . . . . . . . . . . . . . . . . . . 39 Distress Signals 39 | . . . . . . . . . . . . . . . . . . . . . . . . . . . . . . . . 39 Times Spotted 576 | . 7 12 . . 42 6 . 12 10 20 . 57 11 14 28 10 1 3 56 5 22 46 6 1 6 . 7 30 9 25 90 40 Peak Tracking Total 37 | . 4 3 . . 5 2 . 4 4 8 . 37 3 4 4 5 1 2 6 2 9 11 2 1 4 . 2 9 5 13 7 10 Tactical Retreats 30 | . . 1 . . 3 . . . 1 1 . 1 2 . . . . . 4 2 1 . . . . . . 1 . 6 5 2 Traps | -11 -10 -10 -10 -9 -8 -7 -7 -7 -7 -7 -7 -7 -6 -6 -6 -6 -6 -6 -5 -5 -5 -5 -4 -4 -4 -4 -4 -4 -3 -2 -1 -1 ------- Run | Yrd Mat Min Exi Min Mat Fac Was Fac Low Low Zio Dee Pro Fac Ext Cet Arc Hub Fac Upp Upp War Pro Fac Was Fac DSF Gar Res Res Acc Com Traps Triggered 23 | . 1 . . . . 6 . 1 . . . . . 7 2 . . . 3 . . . . 1 . . . 1 . . 1 . Indirectly . | . . . . . . . . . . . . . . . . . . . . . . . . . . . . . . . . . Trap Hack Attempts . | . . . . . . . . . . . . . . . . . . . . . . . . . . . . . . . . . Triggered . | . . . . . . . . . . . . . . . . . . . . . . . . . . . . . . . . . Disarmed . | . . . . . . . . . . . . . . . . . . . . . . . . . . . . . . . . . Reprogrammed . | . . . . . . . . . . . . . . . . . . . . . . . . . . . . . . . . . Reused 1 | . . . . . . . . . . . . . 1 . . . . . . . . . . . . . . . . . . . Traps Extracted . | . . . . . . . . . . . . . . . . . . . . . . . . . . . . . . . . . Installed 10 | . . . . . . . . . 4 . . . 6 . . . . . . . . . . . . . . . . . . . Triggered 1 | . . . . . . . . . . . . . 1 . . . . . . . . . . . . . . . . . . . Machines | -11 -10 -10 -10 -9 -8 -7 -7 -7 -7 -7 -7 -7 -6 -6 -6 -6 -6 -6 -5 -5 -5 -5 -4 -4 -4 -4 -4 -4 -3 -2 -1 -1 ---------- Run | Yrd Mat Min Exi Min Mat Fac Was Fac Low Low Zio Dee Pro Fac Ext Cet Arc Hub Fac Upp Upp War Pro Fac Was Fac DSF Gar Res Res Acc Com Machines Disabled 46 | . . . . . 2 . . 7 . . 3 2 . 2 8 . 1 1 8 . . 2 . 1 . . . 3 . . 5 1 Max in Single Turn 4 | . . . . . 1 . . 1 . . 1 1 . 1 1 . . 1 4 . . 1 . 1 . . . 1 . . 1 1 Garrison Access 6 | . . . . . 1 . . . . . . . . . . . . . 1 . . . . . . . . . . 2 2 . Garrison Relay 1 | . . . . . . . . . . . . . . . . . . . . . . . . . . . . 1 . . . . Machines Repaired . | . . . . . . . . . . . . . . . . . . . . . . . . . . . . . . . . . Machines Dismantled 3 | . . . . . . . . . . . 3 . . . . . . . . . . . . . . . . . . . . . Machines Sabotaged . | . . . . . . . . . . . . . . . . . . . . . . . . . . . . . . . . . Overloaded Fab Kills . | . . . . . . . . . . . . . . . . . . . . . . . . . . . . . . . . . Hacking | -11 -10 -10 -10 -9 -8 -7 -7 -7 -7 -7 -7 -7 -6 -6 -6 -6 -6 -6 -5 -5 -5 -5 -4 -4 -4 -4 -4 -4 -3 -2 -1 -1 --------- Run | Yrd Mat Min Exi Min Mat Fac Was Fac Low Low Zio Dee Pro Fac Ext Cet Arc Hub Fac Upp Upp War Pro Fac Was Fac DSF Gar Res Res Acc Com Machines Accessed 80 | . 1 . 2 1 12 6 . 3 . . . . . 10 6 1 1 2 10 . 1 2 . 1 . 3 . 1 2 1 9 5 Terminals 43 | . . . . . 10 2 . 1 . . . . . 4 6 1 . 2 4 . . . . . . 1 . 1 1 . 6 4 Fabricators 9 | . . . . . . 1 . 1 . . . . . 3 . . . . 2 . . . . . . 1 . . 1 . . . Repair Stations 2 | . . . . . . . . . . . . . . . . . . . . . . . . . . 1 . . . . 1 . Recycling Units 6 | . 1 . . . . 1 . . . . . . . 1 . . . . 1 . . . . 1 . . . . . . . 1 Scanalyzers 5 | . . . . . 1 2 . . . . . . . 1 . . . . 1 . . . . . . . . . . . . . Garrison Access 8 | . . . . . 1 . . 1 . . . . . 1 . . . . 2 . . . . . . . . . . 1 2 . Total Hacks 188 | . 1 . 5 1 35 15 . 4 . . . . . 20 13 6 18 3 19 . 1 7 . 3 . 6 . 1 5 1 17 7 Successful 97 | . 1 . 5 1 20 5 . . . . . . . 7 4 2 18 1 10 . 1 7 . 3 . 2 . . 3 1 5 1 Failed 90 | . . . . . 15 9 . 4 . . . . . 13 9 4 . 2 9 . . . . . . 4 . 1 2 . 12 6 Catastrophic 20 | . . . . . 2 3 . 1 . . . . . 4 1 1 . 1 1 . . . . . . . . 1 . . 4 1 Database Lockouts 1 | . . . . . . 1 . . . . . . . . . . . . . . . . . . . . . . . . . . Manual 50 | . 1 . 1 . 15 4 . . . . . . . 6 5 1 . 3 3 . . . . 3 . 3 . . . . . 5 Terminals 91 | . . . . . 29 2 . 1 . . . . . 6 13 6 . 3 7 . . . . . . 2 . 1 3 . 12 6 Fabricators 18 | . . . . . . 3 . 1 . . . . . 6 . . . . 3 . . . . . . 3 . . 2 . . . Repair Stations 4 | . . . . . . . . . . . . . . . . . . . . . . . . . . 1 . . . . 3 . Recycling Units 12 | . 1 . . . . 2 . . . . . . . 2 . . . . 3 . . . . 3 . . . . . . . 1 Scanalyzers 19 | . . . . . 3 8 . . . . . . . 5 . . . . 3 . . . . . . . . . . . . . Garrison Access 12 | . . . . . 3 . . 2 . . . . . 1 . . . . 3 . . . . . . . . . . 1 2 . Terminal Hacks 55 | . . . 5 1 10 . . . . . . . . . 3 2 18 . 3 . 1 7 . . . 1 . . 1 . 2 1 Record 24 | . . . 4 . . . . . . . . . . . . 2 18 . . . . . . . . . . . . . . . Part Schematic 1 | . . . . . 1 . . . . . . . . . . . . . . . . . . . . . . . . . . . Prototype ID Bank 8 | . . . . . 1 . . . . . . . . . . . . . 1 . . 6 . . . . . . . . . . Open Door 6 | . . . . 1 . . . . . . . . . . . . . . . . 1 1 . . . . . . . . 2 1 Open DSF 1 | . . . . . . . . . . . . . . . . . . . . . . . . . . 1 . . . . . . Level Access Points 2 | . . . . . 1 . . . . . . . . . . . . . . . . . . . . . . . 1 . . . Branch Access Points 1 | . . . . . . . . . . . . . . . . . . . 1 . . . . . . . . . . . . . Emergency Access Points 1 | . . . . . 1 . . . . . . . . . . . . . . . . . . . . . . . . . . . Unreport Threat 1 | . . . . . . . . . . . . . . . 1 . . . . . . . . . . . . . . . . . Locate Traps 4 | . . . . . 3 . . . . . . . . . 1 . . . . . . . . . . . . . . . . . Registered Components 2 | . . . . . 1 . . . . . . . . . . . . . 1 . . . . . . . . . . . . . Zone Layout 3 | . . . . . 2 . . . . . . . . . 1 . . . . . . . . . . . . . . . . . Proto ID Catalog 1 | . . . 1 . . . . . . . . . . . . . . . . . . . . . . . . . . . . . Fabricator Hacks 7 | . . . . . . 1 . . . . . . . 2 . . . . 2 . . . . . . . . . 2 . . . Network Status 1 | . . . . . . . . . . . . . . . . . . . 1 . . . . . . . . . . . . . Load Schematic 3 | . . . . . . . . . . . . . . 1 . . . . 1 . . . . . . . . . 1 . . . Build 3 | . . . . . . 1 . . . . . . . 1 . . . . . . . . . . . . . . 1 . . . Repair Station Hacks 1 | . . . . . . . . . . . . . . . . . . . . . . . . . . . . . . . 1 . Scan Component 1 | . . . . . . . . . . . . . . . . . . . . . . . . . . . . . . . 1 . Recycling Unit Hacks 1 | . . . . . . . . . . . . . . . . . . . 1 . . . . . . . . . . . . . Retrieve Components 1 | . . . . . . . . . . . . . . . . . . . 1 . . . . . . . . . . . . . Scanalyzer 11 | . . . . . 1 4 . . . . . . . 3 . . . . 3 . . . . . . . . . . . . . Insert Component 3 | . . . . . . 1 . . . . . . . 1 . . . . 1 . . . . . . . . . . . . . Analyze 6 | . . . . . . 2 . . . . . . . 2 . . . . 2 . . . . . . . . . . . . . Retrieve Study 2 | . . . . . 1 1 . . . . . . . . . . . . . . . . . . . . . . . . . . Garrison Access Hacks 5 | . . . . . 1 . . . . . . . . . . . . . 1 . . . . . . . . . . 1 2 . Seal Access 5 | . . . . . 1 . . . . . . . . . . . . . 1 . . . . . . . . . . 1 2 . Unauthorized Hacks 17 | . 1 . . . 8 . . . . . . . . 2 1 . . 1 . . . . . 3 . 1 . . . . . . Terminals 12 | . . . . . 8 . . . . . . . . 2 1 . . 1 . . . . . . . . . . . . . . Assimilate 2 | . . . . . 1 . . . . . . . . . . . . 1 . . . . . . . . . . . . . . Botnet 3 | . . . . . 2 . . . . . . . . . 1 . . . . . . . . . . . . . . . . . Skim 7 | . . . . . 5 . . . . . . . . 2 . . . . . . . . . . . . . . . . . . Fabricators 1 | . . . . . . . . . . . . . . . . . . . . . . . . . . 1 . . . . . . Liberate 1 | . . . . . . . . . . . . . . . . . . . . . . . . . . 1 . . . . . . Repair Stations . | . . . . . . . . . . . . . . . . . . . . . . . . . . . . . . . . . Recycling Units 4 | . 1 . . . . . . . . . . . . . . . . . . . . . . 3 . . . . . . . . Reject 1 | . . . . . . . . . . . . . . . . . . . . . . . . 1 . . . . . . . . Recyclers 1 | . . . . . . . . . . . . . . . . . . . . . . . . 1 . . . . . . . . Mask 1 | . . . . . . . . . . . . . . . . . . . . . . . . 1 . . . . . . . . Tunnel 1 | . 1 . . . . . . . . . . . . . . . . . . . . . . . . . . . . . . . Scanalyzers . | . . . . . . . . . . . . . . . . . . . . . . . . . . . . . . . . . Garrison Access . | . . . . . . . . . . . . . . . . . . . . . . . . . . . . . . . . . Data Cores Recovered 3 | . . . . . 1 1 . . . . . . . . 1 . . . . . . . . . . . . . . . . . Used 1 | . . . . . . . . . . . . . . . 1 . . . . . . . . . . . . . . . . . Hacking Detections 65 | . . . . . 10 5 . 3 . . . . . 10 6 2 . 2 9 . . . . 1 . 3 . 1 1 . 7 5 Full Trace Events 4 | . . . . . . . . 1 . . . . . 1 . . . . 1 . . . . . . . . . . . 1 . Feedback Events . | . . . . . . . . . . . . . . . . . . . . . . . . . . . . . . . . . Feedback Blocked . | . . . . . . . . . . . . . . . . . . . . . . . . . . . . . . . . . Robot Schematics Acquired . | . . . . . . . . . . . . . . . . . . . . . . . . . . . . . . . . . Robots Built 4 | . . . . . . 4 . . . . . . . . . . . . . . . . . . . . . . . . . . Authchips . | . . . . . . . . . . . . . . . . . . . . . . . . . . . . . . . . . Time 67 | . . . . . . 67 . . . . . . . . . . . . . . . . . . . . . . . . . . Total Robot Build Rating 16 | . . . . . . 16 . . . . . . . . . . . . . . . . . . . . . . . . . . Part Schematics Acquired 2 | . . . . . 1 1 . . . . . . . . . . . . . . . . . . . . . . . . . . Parts Built 3 | . . . . . . . . . . . . . . 1 . . . . . . . . . . . . . . 2 . . . Authchips 1 | . . . . . . . . . . . . . . . . . . . . . . . . . . . . . 1 . . . Time 79 | . . . . . . . . . . . . . . 51 . . . . . . . . . . . . . . 28 . . . Total Part Build Rating 9 | . . . . . . . . . . . . . . 1 . . . . . . . . . . . . . . 8 . . . Part Studies Acquired 2 | . . . . . 1 1 . . . . . . . . . . . . . . . . . . . . . . . . . . Parts Repaired . | . . . . . . . . . . . . . . . . . . . . . . . . . . . . . . . . . Time . | . . . . . . . . . . . . . . . . . . . . . . . . . . . . . . . . . Parts Recycled . | . . . . . . . . . . . . . . . . . . . . . . . . . . . . . . . . . Recycled Matter . | . . . . . . . . . . . . . . . . . . . . . . . . . . . . . . . . . Retrieved Matter . | . . . . . . . . . . . . . . . . . . . . . . . . . . . . . . . . . Retrieved Components 2 | . . . . . . . . . . . . . . . . . . . 2 . . . . . . . . . . . . . Parts Scanalyzed 3 | . . . . . . 1 . . . . . . . 1 . . . . 1 . . . . . . . . . . . . . Part Schematics Acquired 1 | . . . . . . 1 . . . . . . . . . . . . . . . . . . . . . . . . . . Parts Damaged . | . . . . . . . . . . . . . . . . . . . . . . . . . . . . . . . . . Bothacking | -11 -10 -10 -10 -9 -8 -7 -7 -7 -7 -7 -7 -7 -6 -6 -6 -6 -6 -6 -5 -5 -5 -5 -4 -4 -4 -4 -4 -4 -3 -2 -1 -1 ------------ Run | Yrd Mat Min Exi Min Mat Fac Was Fac Low Low Zio Dee Pro Fac Ext Cet Arc Hub Fac Upp Upp War Pro Fac Was Fac DSF Gar Res Res Acc Com Used RIF Installer 1 | . . . . . . . . . . . . . . . . . . . . . . . . . . . . 1 . . . . Robots Hacked 8 | . . . . . . . . . . . . . . . . . . . . . . . . . . . . . 4 2 . 2 Non-combat 4 | . . . . . . . . . . . . . . . . . . . . . . . . . . . . . 2 1 . 1 Combat 3 | . . . . . . . . . . . . . . . . . . . . . . . . . . . . . 2 1 . . Robot Hacks Applied 7 | . . . . . . . . . . . . . . . . . . . . . . . . . . . . . 4 2 . 1 parse_system 4 | . . . . . . . . . . . . . . . . . . . . . . . . . . . . . 2 1 . 1 randomize_corridors 1 | . . . . . . . . . . . . . . . . . . . . . . . . . . . . . 1 . . . emergency_deploy 1 | . . . . . . . . . . . . . . . . . . . . . . . . . . . . . . 1 . . formatsys_low 1 | . . . . . . . . . . . . . . . . . . . . . . . . . . . . . 1 . . . Manual 1 | . . . . . . . . . . . . . . . . . . . . . . . . . . . . . . . . 1 Relay Couplers Released 8 | . . . . . . . . . . . . . . . . . . . . . . . . . . . . 4 . 3 1 . Machine Destruction 8 | . . . . . . . . . . . . . . . . . . . . . . . . . . . . 4 . 3 1 . Attached 2 | . . . . . . . . . . . . . . . . . . . . . . . . . . . . . 1 1 . . Fabnet Peak Effective % . | . . . . . . . . . . . . . . . . . . . . . . . . . . . . . . . . . Robots Rewired 17 | . . . . . . . . . . 4 . . . . 13 . . . . . . . . . . . . . . . . . Allies Hacked 1 | . . . . . . . . . 1 . . . . . . . . . . . . . . . . . . . . . . . Hacks Repelled . | . . . . . . . . . . . . . . . . . . . . . . . . . . . . . . . . . Allies | -11 -10 -10 -10 -9 -8 -7 -7 -7 -7 -7 -7 -7 -6 -6 -6 -6 -6 -6 -5 -5 -5 -5 -4 -4 -4 -4 -4 -4 -3 -2 -1 -1 -------- Run | Yrd Mat Min Exi Min Mat Fac Was Fac Low Low Zio Dee Pro Fac Ext Cet Arc Hub Fac Upp Upp War Pro Fac Was Fac DSF Gar Res Res Acc Com Total Allies 63 | . . . . 2 1 4 20 . . 4 . . . . 22 5 . . . . . . . . . 2 . . 1 . . 2 Largest Group 20 | . . . . 2 2 4 20 20 7 3 3 3 . . 11 15 15 . . . . . . . . 2 2 . 1 1 . 2 Highest-Rated Group 910 | . . . . 39 39 48 474 474 204 88 71 68 . . 475 910 893 . . . . . . . . 112 112 . 14 14 . 192 Highest-Rated Ally 159 | . . . . 31 31 12 35 35 35 31 30 30 . . 159 159 146 . . . . . . . . 56 56 . 14 14 . 96 Total Orders 10 | . . . . 1 . . . . . 2 . 1 . . . 2 . . . 2 1 . . . . . . . 1 . . . STAY 3 | . . . . . . . . . . 1 . 1 . . . 1 . . . . . . . . . . . . . . . . FOLLOW 1 | . . . . . . . . . . . . . . . . 1 . . . . . . . . . . . . . . . . AID 1 | . . . . . . . . . . . . . . . . . . . . . . . . . . . . . 1 . . . EXPLORE 2 | . . . . . . . . . . . . . . . . . . . . 1 1 . . . . . . . . . . . RETURN 3 | . . . . 1 . . . . . 1 . . . . . . . . . 1 . . . . . . . . . . . . Ally Attacks 413 | . . . . . 4 18 . 114 21 34 . . . . 91 44 21 . 18 . . . . . . . 12 . . . . 36 Total Damage 8504 | . . . . . 62 150 . 2561 588 367 . . . . 1500 1250 486 . 59 . . . . . . . 466 . . . . 1015 Kills 64 | . . . . . 1 1 . 21 6 5 . . . . 13 7 3 . 1 . . . . . . . 1 . . . . 5 Allies Corrupted 3 | . . . . . . . . 1 2 . . . . . . . . . . . . . . . . . . . . . . . Allies Melted 1 | . . . . . . . . . . . . . . . . . . . . . . . . . . . . . . . . 1 Intel | -11 -10 -10 -10 -9 -8 -7 -7 -7 -7 -7 -7 -7 -6 -6 -6 -6 -6 -6 -5 -5 -5 -5 -4 -4 -4 -4 -4 -4 -3 -2 -1 -1 ------- Run | Yrd Mat Min Exi Min Mat Fac Was Fac Low Low Zio Dee Pro Fac Ext Cet Arc Hub Fac Upp Upp War Pro Fac Was Fac DSF Gar Res Res Acc Com Active Infowar (turns) 10336 | 5 399 586 351 734 246 . . . 541 308 . 547 747 1 . . . . 68 752 485 641 802 . . . . . 882 24 1840 377 Sensors 2145 | . . . . 1 . . . . 541 308 . 547 747 1 . . . . . . . . . . . . . . . . . . Terrain 2881 | . . . . . . . . . . . . . . . . . . . 68 . 485 641 . . . . . . 870 24 793 . Seismic 3072 | 5 399 586 351 733 246 . . . . . . . . . . . . . . 752 . . . . . . . . . . . . Jamming 2249 | . . . . . . . . . . . . . . . . . . . . . . . 802 . . . . . 12 . 1060 375 ECM 2 | . . . . . . . . . . . . . . . . . . . . . . . . . . . . . . . . 2 Robot Analysis Total . | . . . . . . . . . . . . . . . . . . . . . . . . . . . . . . . . . Derelict Logs Recovered 11 | . . 1 . 1 . . . . 2 1 1 . . . . . . . . 1 3 . 1 . . . . . . . . . Drone Launches 17 | . . . . 1 . . . . . 4 . . . . . . . . 4 2 1 . . . . . . . . . . 5 Drone Recoveries 12 | . . . . 1 . . . . . 4 . . . . . . . . 4 1 . . . . . . . . . . . 2 Exploration | -11 -10 -10 -10 -9 -8 -7 -7 -7 -7 -7 -7 -7 -6 -6 -6 -6 -6 -6 -5 -5 -5 -5 -4 -4 -4 -4 -4 -4 -3 -2 -1 -1 ------------- Run | Yrd Mat Min Exi Min Mat Fac Was Fac Low Low Zio Dee Pro Fac Ext Cet Arc Hub Fac Upp Upp War Pro Fac Was Fac DSF Gar Res Res Acc Com Turns Passed 35834 | 76 399 586 351 813 2421 1216 447 634 926 1755 1960 3091 747 1365 1463 638 128 264 2798 1203 757 1572 820 451 418 178 118 1370 1142 1602 2869 1256 Spaces Moved 19560 | 48 169 344 312 517 937 598 260 360 524 957 1154 1558 488 841 904 453 84 106 1354 471 437 1026 398 281 263 138 61 778 744 1072 1385 538 Core 4 | 4 . . . . . . . . . . . . . . . . . . . . . . . . . . . . . . . . Treads 6456 | . 164 236 . 442 918 598 260 360 524 957 1154 843 . . . . . . . . . . . . . . . . . . . . Legs 12493 | . . . . . . . . . . . . 715 488 841 904 453 84 106 1310 471 437 1026 398 281 263 138 61 778 744 1072 1385 538 Wheels 607 | 44 5 108 312 75 19 . . . . . . . . . . . . . 44 . . . . . . . . . . . . . Hover . | . . . . . . . . . . . . . . . . . . . . . . . . . . . . . . . . . Flight . | . . . . . . . . . . . . . . . . . . . . . . . . . . . . . . . . . Fastest Speed 50 | 50 95 110 110 110 110 160 162 162 160 160 160 90 120 96 80 120 120 175 126 132 132 122 124 124 124 124 124 124 117 124 124 110 Average Speed 139 | 89 158 144 110 152 159 162 162 162 160 161 160 141 120 120 119 120 136 176 147 134 140 132 124 124 124 124 124 124 129 128 135 136 Slowest Speed 245 | 95 160 240 110 160 240 225 162 162 162 162 160 160 120 176 120 120 176 180 245 187 185 187 124 124 124 124 124 124 178 178 178 190 Overloaded Moves 11 | . . . . . . . . . . . . . . 1 7 . . . 3 . . . . . . . . . . . . . Propulsion Burnouts . | . . . . . . . . . . . . . . . . . . . . . . . . . . . . . . . . . Robots Hopped . | . . . . . . . . . . . . . . . . . . . . . . . . . . . . . . . . . Potential Cave-ins . | . . . . . . . . . . . . . . . . . . . . . . . . . . . . . . . . . Cave-ins Triggered . | . . . . . . . . . . . . . . . . . . . . . . . . . . . . . . . . . Exploration Rate (%) 55 | 3 33 50 70 94 82 15 93 15 73 84 87 86 56 23 97 90 72 12 30 90 62 93 56 8 99 4 82 66 19 29 28 27 Regions Visited 32 Branch Regions 17 Pre-discovered Areas 4 | . 1 . 1 . 2 . . . . . . . . . . . . . . . . . . . . . . . . . . . Known Exits Taken 10 | . . . . . 1 . . 1 1 . 1 . 1 1 . . . . 1 . . . 1 . . 1 . . 1 . . . Unknown Exits Taken 16 | 1 1 1 1 1 . . . . . 1 . 1 . . 1 1 1 1 . 1 1 1 . . . . . . . 1 1 . Scrap Searched 21 | . . 1 . 2 . . . . 3 4 3 . 2 . . . . . . 2 2 . 2 . . . . . . . . . Spaces Dug 219 | . . . . . . 4 . 4 . . . 3 18 27 9 . . . 43 . 11 . . 1 3 . . 4 5 . 80 7 Terrain Destroyed 1010 | . . . . . 1 4 . 5 . . . 142 65 38 39 4 . 2 204 22 55 93 17 1 18 . 15 66 9 24 169 17 Melee 8 | . . . . . . 4 . 4 . . . . . . . . . . . . . . . . . . . . . . . . Projectile 670 | . . . . . 1 . . 1 . . . 8 34 38 39 4 . 2 103 22 55 57 17 1 18 . 15 66 9 12 151 17 AOE 332 | . . . . . . . . . . . . 134 31 . . . . . 101 . . 36 . . . . . . . 12 18 . Terrain Rammed . | . . . . . . . . . . . . . . . . . . . . . . . . . . . . . . . . . Walls Destroyed . | . . . . . . . . . . . . . . . . . . . . . . . . . . . . . . . . . Machines Disabled . | . . . . . . . . . . . . . . . . . . . . . . . . . . . . . . . . . Actions | -11 -10 -10 -10 -9 -8 -7 -7 -7 -7 -7 -7 -7 -6 -6 -6 -6 -6 -6 -5 -5 -5 -5 -4 -4 -4 -4 -4 -4 -3 -2 -1 -1 --------- Run | Yrd Mat Min Exi Min Mat Fac Was Fac Low Low Zio Dee Pro Fac Ext Cet Arc Hub Fac Upp Upp War Pro Fac Was Fac DSF Gar Res Res Acc Com Total 26024 | 65 281 379 321 536 1704 806 283 391 581 1087 1213 2342 604 1112 1192 530 97 181 1889 1009 516 1179 702 381 296 147 79 1037 911 1245 2020 908 Wait 4220 | . 95 . . 2 601 149 11 9 38 56 25 632 84 180 79 44 13 73 311 502 32 70 264 48 1 . 7 153 103 114 355 169 Move 19529 | 47 168 343 311 516 936 598 259 359 523 956 1153 1557 487 840 903 452 83 105 1353 470 436 1025 397 281 262 137 60 776 743 1071 1384 538 Hop . | . . . . . . . . . . . . . . . . . . . . . . . . . . . . . . . . . Pick Up 193 | 5 2 2 5 6 23 9 . 1 1 1 1 18 . 6 4 6 . . 15 2 1 10 5 20 2 . 1 11 10 5 12 9 Fast Attach 152 | 7 3 . . . 11 13 6 4 . 1 2 9 2 5 1 3 . 1 14 3 6 7 3 7 . 2 . 2 4 6 9 21 Attach 102 | . 1 1 2 . 9 2 . . 1 . . 24 . 1 . . . . 10 2 2 4 2 3 1 1 . 3 2 . 12 19 Detach 175 | . . . 2 . 1 1 . 1 1 . . 17 . 8 3 3 . 1 11 7 4 17 10 4 . 3 . 6 12 4 27 32 Swap 182 | . 2 . . 7 16 9 . 4 2 7 2 12 4 2 . 1 . . 18 3 4 17 1 2 2 1 . 4 10 7 25 20 Drop 232 | . 1 . 1 2 26 10 6 4 . 2 3 22 1 8 5 10 . . 16 4 5 6 7 12 3 3 1 11 13 12 15 23 Fire 951 | 6 9 31 . . 78 10 1 4 11 30 . 43 20 51 53 11 . 1 116 16 26 22 13 4 25 . 10 66 13 26 179 76 Melee 27 | . . . . . . 4 . 4 . . . 5 . 1 . . . . 13 . . . . . . . . . . . . . Ram . | . . . . . . . . . . . . . . . . . . . . . . . . . . . . . . . . . Kick 17 | . . . . . . . . . . . . . . . 6 . . . 7 . . . . . . . . . 1 . 2 1 Crush 9 | . . 2 . 3 3 1 . . . . . . . . . . . . . . . . . . . . . . . . . . Escape Stasis 30 | . . . . . . . . . . . . . . 10 10 . . . 5 . . . . . . . . 5 . . . . Rewire 168 | . . . . . . . . 1 . 34 . 3 . . 128 . 1 . . . . 1 . . . . . . . . . . Trap 10 | . . . . . . . . . 4 . . . 6 . . . . . . . . . . . . . . . . . . . Miscellaneous 27 | . . . . . . . . . . . 27 . . . . . . . . . . . . . . . . . . . . . Route ------- -11/Scrapyard -10/Materials (discovered 2 exits: [*Mat] / [*Min]) -10/Mines (discovered 3 exits: [*Mat x2] / *Exi) -10/Exiles -9/Mines (discovered 2 exits: *Mat x2) -8/Materials (discovered 3 exits: *Fac x3) -7/Factory -7/Waste -7/Factory (discovered 2 exits: *Fac / *Low) -7/Lower Caves -7/Lower Caves -7/Zion (discovered 2 exits: *Dee / [*Pro]) -7/Deep Caves -6/Proximity Caves -6/Factory (discovered 4 exits: *Low x2 / *Ext x2) -6/Extension (discovered 2 exits: *Fac / *Cet) -6/Cetus (discovered 3 exits: *Fac x2 / *Arc) -6/Archives -6/Hub_04(d) -5/Factory (discovered 3 exits: *Fac / *Upp x2) -5/Upper Caves -5/Upper Caves -5/Warlord -4/Proximity Caves -4/Factory -4/Waste -4/Factory -4/DSF -4/Garrison (discovered 3 exits: *Res x3) -3/Research (discovered 4 exits: *Res x3 / Arm) -2/Research (discovered 2 exits: *Acc / *Qua) -1/Access (discovered 2 exits: Sur / *Com) -1/Command (discovered 2 exits: Sur x2) History --------- Turn | Location | Event 19 | -11/Scrapyard | Discovered new exit (range 16) 77 | -11/Scrapyard | Entered Materials 315 | -10/Materials | Build established: Mutant 376 | -10/Materials | Discovered new exit (range 8) 432 | -10/Materials | Discovered new exit (range 9) 476 | -10/Materials | Entered Mines 483 | -10/Mines | Received a Rocket Launcher from a helpful Derelict 514 | -10/Mines | Learned Materials terminal intel 514 | -10/Mines | Discovered new exit (range 6) 568 | -10/Mines | Discovered new exit (range 13) 615 | -10/Mines | Deemed a non-threat by the Exiles lab entrance 615 | -10/Mines | Discovered new exit (range 5) 856 | -10/Mines | Assembled infested the area 1062 | -10/Mines | Entered Exiles 1094 | -10/Exiles | Met 8R-AWN 1110 | -10/Exiles | Met EX-HEX 1189 | -10/Exiles | Met EX-DEC 1210 | -10/Exiles | Learned location of Zion (-7) 1229 | -10/Exiles | Met EX-BIN 1248 | -10/Exiles | Aligned with FarCom system 1249 | -10/Exiles | Given EX-Vault access code 1274 | -10/Exiles | Opened EX-Vault 1283 | -10/Exiles | Found Potential Leg 1285 | -10/Exiles | Found Potential Leg 1306 | -10/Exiles | Warned to stay clear of 0b10 Research branches 1399 | -10/Exiles | Discovered new exit (range 13) 1413 | -10/Exiles | Left Exiles lab with Potential Leg 1413 | -10/Exiles | Entered Mines 1546 | -9/Mines | Learned Materials terminal intel 1787 | -9/Mines | Discovered new exit (range 15) 1799 | -9/Mines | Found a damaged Exp. Sensor Array with a note attached 1802 | -9/Mines | Found Prototype Device 1803 | -9/Mines | Identified Exp. Sensor Array 1936 | -9/Mines | Discovered new exit (range 7) 2037 | -9/Mines | Found the Drone Emporium 2046 | -9/Mines | Found Prototype Device 2047 | -9/Mines | Identified Thief Drone Bay 2226 | -9/Mines | Entered Materials 2226 | -8/Materials | Accompanied by 2 allies 2226 | -8/Materials | Evolved 4 slots: Propulsion x1, Utility x1, Weapon x2 2227 | -8/Materials | Loaded intel: 12 terminal locations 2231 | -8/Materials | Led the pair of lost Derelicts to an unsafe place 2369 | -8/Materials | Lost 10 parts (2p3n2u3w) 2641 | -8/Materials | Build established: Scavenger-Skirmisher 2747 | -8/Materials | Discovered new exit (range 3) 2877 | -8/Materials | Identified exit to Factory 3136 | -8/Materials | Build established: Skirmisher 3974 | -8/Materials | Learned Factory fabricator intel 4039 | -8/Materials | Learned Factory stockpile data 4094 | -8/Materials | Learned Factory security intel 4263 | -8/Materials | Learned location of Extension (-6) 4647 | -8/Materials | Entered Factory 4647 | -7/Factory | Evolved 2 slots: Propulsion x1, Utility x1 4650 | -7/Factory | Loaded intel: 6 fabricator locations 4959 | -7/Factory | Fabricated S-27 Virus? 5259 | -7/Factory | Build established: Commander-Tank 5330 | -7/Factory | Lost 3 allies 5747 | -7/Factory | Build established: Scavenger-Skirmisher 5844 | -7/Factory | Central database locked down 5863 | -7/Factory | Sucked down chute 5863 | -7/Factory | Entered Waste 5864 | -7/Waste | Joined by Warlord forces that had cleared the area 6196 | -7/Waste | Discovered new exit (range 16) 6286 | -7/Waste | Build established: Derelict-Skirmisher 6310 | -7/Waste | Entered Factory 6310 | -7/Factory | Accompanied by 20 allies 6376 | -7/Factory | Found Prototype Launcher 6376 | -7/Factory | Identified Rocket Array 6838 | -7/Factory | Lost 6 allies 6839 | -7/Factory | Discovered new exit (range 10) 6855 | -7/Factory | Identified exit to Factory 6883 | -7/Factory | Discovered new exit (range 13) 6902 | -7/Factory | Identified exit to Lower Caves 6944 | -7/Factory | Entered Lower Caves 6944 | -7/Lower Caves | Accompanied by 7 allies 7004 | -7/Lower Caves | Attracted the attention of an 0b10 checkpoint 7048 | -7/Lower Caves | Encountered a Warlord checkpoint 7156 | -7/Lower Caves | Lost 4 allies 7246 | -7/Lower Caves | Build established: Derelict-Tank 7665 | -7/Lower Caves | Learned 12 Factory zone layouts 7691 | -7/Lower Caves | Identified exit to Lower Caves 7870 | -7/Lower Caves | Entered another Lower Caves area 7870 | -7/Lower Caves | Accompanied by 2 allies 7945 | -7/Lower Caves | Attacked by a faux Warlord 8413 | -7/Lower Caves | Attracted the attention of an 0b10 checkpoint 9075 | -7/Lower Caves | Encountered a Warlord checkpoint 9152 | -7/Lower Caves | Attracted the attention of an 0b10 outpost 9370 | -7/Lower Caves | Discovered new exit (range 8) 9388 | -7/Lower Caves | Learned 8 Factory zone layouts 9625 | -7/Lower Caves | Entered Zion 9625 | -7/Zion | Accompanied by 3 allies 9688 | -7/Zion | Discovered new exit (range 16) 9773 | -7/Zion | Found Prototype Device 9773 | -7/Zion | Identified Mobile Refinery Mk. CCLXVII 9991 | -7/Zion | Given A8's code to call for help 10303 | -7/Zion | Identified exit to Deep Caves 10701 | -7/Zion | Learned Factory repair station intel 11055 | -7/Zion | Rebuked by Imprinter 11297 | -7/Zion | Saw the warning signs outside the Deep Caves entrance 11585 | -7/Zion | Entered Deep Caves 11585 | -7/Deep Caves | Accompanied by 3 allies 11787 | -7/Deep Caves | Attacked by Z-Imprinter 11810 | -7/Deep Caves | Destroyed Z-Imprinter 11923 | -7/Deep Caves | Z-Facility disabled 12006 | -7/Deep Caves | Found Prototype Protection 12006 | -7/Deep Caves | Identified Zio. Heavy Carapace 12085 | -7/Deep Caves | Found Zio. Heavy Carapace 12230 | -7/Deep Caves | Build established: Tank 12246 | -7/Deep Caves | Found Prototype Protection 12246 | -7/Deep Caves | Identified Zio. Weapon Casing 12753 | -7/Deep Caves | Discovered new exit (range 7) 12976 | -7/Deep Caves | Spotted Golem 13005 | -7/Deep Caves | Destroyed Golem 13011 | -7/Deep Caves | Found GOLEM Unit 13063 | -7/Deep Caves | Spotted Golem 13099 | -7/Deep Caves | Destroyed Golem 13115 | -7/Deep Caves | Found GOLEM Unit 13129 | -7/Deep Caves | Lost 3 parts (1n1u1w) 13149 | -7/Deep Caves | Triggered Deep Caves wall 13149 | -7/Deep Caves | Spotted Assembler 13149 | -7/Deep Caves | Spotted Assembler 13169 | -7/Deep Caves | Destroyed Assembler 13178 | -7/Deep Caves | Destroyed Assembler 13199 | -7/Deep Caves | Destroyed 40 combat bots 13226 | -7/Deep Caves | Found Latent Energy Streamer 13624 | -7/Deep Caves | Build established: Golem 13835 | -7/Deep Caves | Exposed GOLEM chamber 13839 | -7/Deep Caves | Found GOLEM Unit 13846 | -7/Deep Caves | Found GOLEM Unit 14127 | -7/Deep Caves | Found GOLEM Unit 14150 | -7/Deep Caves | Build established: Tank 14218 | -7/Deep Caves | Found Surveybot 24 Chip 14221 | -7/Deep Caves | Found Surveybot 24 Scanner 14676 | -7/Deep Caves | Entered Proximity Caves 15107 | -6/Proximity Caves | Core integrity fell below 50% 15396 | -6/Proximity Caves | Discovered exit to Factory (range 8) 15423 | -6/Proximity Caves | Entered Factory 15423 | -6/Factory | Evolved 2 slots: Power x1, Utility x1 15424 | -6/Factory | Identified exit to Extension 15425 | -6/Factory | Identified exit to Lower Caves 15426 | -6/Factory | Loaded intel: 6 repair station locations 15719 | -6/Factory | Build established: Golem 15834 | -6/Factory | Discovered exit to Extension (range 16) 15993 | -6/Factory | Spotted B-75 Beast 16093 | -6/Factory | Destroyed B-75 Beast 16195 | -6/Factory | Fabricated Hcp. Storage Unit? 16467 | -6/Factory | Discovered exit to Lower Caves (range 8) 16507 | -6/Factory | Allied Derelicts emerged from ambush trap array 16788 | -6/Factory | Entered Extension 16914 | -6/Extension | Rescued a captive Derelict 17089 | -6/Extension | Rescued a captive Derelict 17267 | -6/Extension | Rescued a captive Derelict 17270 | -6/Extension | Rescued a captive Derelict 17298 | -6/Extension | Spotted B-75 Beast 17312 | -6/Extension | Spotted B-75 Beast 17315 | -6/Extension | Destroyed B-75 Beast 17347 | -6/Extension | Lost 9 allies 17364 | -6/Extension | Destroyed B-75 Beast 17692 | -6/Extension | Rescued a captive Derelict 17752 | -6/Extension | Rescued a captive Derelict 17752 | -6/Extension | Rescued a captive Derelict 17800 | -6/Extension | Rescued A7 17966 | -6/Extension | Rescued a captive Derelict 17997 | -6/Extension | Discovered new exit (range 10) 17999 | -6/Extension | Discovered new exit (range 6) 18230 | -6/Extension | Build established: Commander-Golem 18251 | -6/Extension | Entered Cetus 18251 | -6/Cetus | Accompanied by 11 allies (A7) 18256 | -6/Cetus | Acquired a Cetus Manufacturing Module code from A7 18279 | -6/Cetus | Spotted Cetus Guard 18280 | -6/Cetus | Spotted Cetus Guard 18283 | -6/Cetus | Spotted Cetus Guard 18285 | -6/Cetus | Spotted Cetus Guard 18286 | -6/Cetus | Allies destroyed Cetus Guard 18302 | -6/Cetus | Allies destroyed Cetus Guard 18306 | -6/Cetus | Allies destroyed Cetus Guard 18307 | -6/Cetus | Allies destroyed Cetus Guard 18357 | -6/Cetus | Discovered new exit (range 15) 18431 | -6/Cetus | Started Cetus Manufacturing Module 18448 | -6/Cetus | Escorted A7 to Cetus Mainframe 18456 | -6/Cetus | Manufactured an Enhanced Grunt 18481 | -6/Cetus | Manufactured an Enhanced Grunt 18506 | -6/Cetus | Manufactured an Enhanced Grunt 18531 | -6/Cetus | Manufactured an Enhanced Grunt 18556 | -6/Cetus | Manufactured an Enhanced Grunt 18589 | -6/Cetus | Discovered new exit (range 16) 18615 | -6/Cetus | Spotted Cetus Guard 18615 | -6/Cetus | Spotted Cetus Guard 18618 | -6/Cetus | Spotted Cetus Guard 18618 | -6/Cetus | Spotted Cetus Guard 18621 | -6/Cetus | Destroyed Cetus Guard 18625 | -6/Cetus | Destroyed Cetus Guard 18629 | -6/Cetus | Allies destroyed Cetus Guard 18633 | -6/Cetus | Destroyed Cetus Guard 18638 | -6/Cetus | Discovered new exit (range 15) 18644 | -6/Cetus | Met Revision 17 18889 | -6/Cetus | Entered Archives 18889 | -6/Archives | Accompanied by 15 allies (A7) 18894 | -6/Archives | Received a hacking code to weaken MAIN.C 18903 | -6/Archives | Met Zhirov 18909 | -6/Archives | Reinforcements dispatched to Archives 18911 | -6/Archives | Unable to access archive contents 18926 | -6/Archives | Unable to access archive contents 18929 | -6/Archives | Discovered new exit (range 16) 18938 | -6/Archives | Read partially decrypted archive contents 18954 | -6/Archives | Reinforcements dispatched to Archives 18974 | -6/Archives | Zhirov detonated Archives 19005 | -6/Archives | Lost 11 allies 19017 | -6/Archives | Entered Hub_04(d) 19017 | -6/Hub_04(d) | Discovered new exit (range 10) 19281 | -6/Hub_04(d) | Entered Factory 19281 | -5/Factory | Evolved 2 slots: Propulsion x1, Utility x1 19291 | -5/Factory | Build established: Golem 20225 | -5/Factory | Identified exit to Upper Caves 20611 | -5/Factory | Build established: Scavenger-Golem 20832 | -5/Factory | System corruption reached 10% 20832 | -5/Factory | Garrison activated, responded to threat 20933 | -5/Factory | Lost 3 parts (1p2n) 21061 | -5/Factory | Discovered new exit (range 13) 21100 | -5/Factory | Build established: Golem 21413 | -5/Factory | Garrison activated, responded to threat 21539 | -5/Factory | Garrison activated, responded to threat 21732 | -5/Factory | Destroyed 7 combat bots 21841 | -5/Factory | Lost 4 parts (1n2u1w) 21889 | -5/Factory | Lost 5 parts (1p1n2u1w) 22028 | -5/Factory | Garrison activated, responded to threat 22079 | -5/Factory | Entered Upper Caves 22081 | -5/Upper Caves | Attracted the attention of an 0b10 checkpoint 22153 | -5/Upper Caves | Build established: Scavenger-Golem 22906 | -5/Upper Caves | Discovered new exit (range 22) 23179 | -5/Upper Caves | Learned 4 Factory zone layouts 23282 | -5/Upper Caves | Entered another Upper Caves area 23337 | -5/Upper Caves | Encountered a Warlord checkpoint 23399 | -5/Upper Caves | Attracted the attention of an 0b10 checkpoint 23985 | -5/Upper Caves | System corruption reached 30% 23997 | -5/Upper Caves | Learned Factory security intel 24022 | -5/Upper Caves | Attracted the attention of an 0b10 outpost 24026 | -5/Upper Caves | Discovered new exit (range 10) 24035 | -5/Upper Caves | Core integrity fell below 50% 24039 | -5/Upper Caves | Entered Warlord 24088 | -5/Warlord | System corruption cleaned by Quarantine Array 24117 | -5/Warlord | Discovered new exit (range 15) 24514 | -5/Warlord | Found Prototype Device 24514 | -5/Warlord | Identified Exp. Phase Shifter 24527 | -5/Warlord | Found Prototype Reactor 24701 | -5/Warlord | Met Warlord 24726 | -5/Warlord | Warlord's base attacked by MAIN.C 24786 | -5/Warlord | Build established: Golem 24889 | -5/Warlord | Found Prototype Energy Cannon 24889 | -5/Warlord | Identified Vortex Cannon 24892 | -5/Warlord | Found Vortex Cannon 24895 | -5/Warlord | Found Prototype Energy Gun 24896 | -5/Warlord | Identified Vortex Rail 24903 | -5/Warlord | Found Prototype Energy Gun 24904 | -5/Warlord | Identified Vortex Rifle 24910 | -5/Warlord | Found Vortex Rail 25026 | -5/Warlord | Found Signal Generator 25076 | -5/Warlord | Warlord forces counterattacked 25164 | -5/Warlord | P-80 Master assimilated allied DX-WZS(g) 25171 | -5/Warlord | Spotted Executioner 25178 | -5/Warlord | Destroyed VL-SU4(B) 25182 | -5/Warlord | Destroyed Executioner 25237 | -5/Warlord | Spotted Striker 25293 | -5/Warlord | Lost 25 allies 25382 | -5/Warlord | Spotted Striker 25401 | -5/Warlord | Warlord base infiltrated, sounded retreat 25531 | -5/Warlord | Spotted Striker 25563 | -5/Warlord | Spotted Striker 25599 | -5/Warlord | Lost 4 allies 25611 | -5/Warlord | Entered Proximity Caves 25880 | -4/Proximity Caves | Attracted the attention of an 0b10 checkpoint 25978 | -4/Proximity Caves | Identified Vortex Chain Reactor 26153 | -4/Proximity Caves | Received a Behemoth hack from an annoying Tinkerer 26363 | -4/Proximity Caves | Identified exit to Factory 26431 | -4/Proximity Caves | Entered Factory 26431 | -4/Factory | Evolved 2 slots: Utility x2 26882 | -4/Factory | Sucked down chute 26882 | -4/Factory | Entered Waste 26897 | -4/Waste | EMP discharged 26927 | -4/Waste | Spotted C-40 Crusher 26928 | -4/Waste | Spotted C-40 Crusher 26935 | -4/Waste | Spotted C-40 Crusher 26941 | -4/Waste | Destroyed C-40 Crusher 26946 | -4/Waste | Spotted C-40 Crusher 26952 | -4/Waste | Destroyed C-40 Crusher 26990 | -4/Waste | Destroyed C-40 Crusher 26997 | -4/Waste | EMP discharged 26997 | -4/Waste | System corruption reached 10% 27017 | -4/Waste | Spotted C-40 Crusher 27033 | -4/Waste | Destroyed C-40 Crusher 27065 | -4/Waste | Spotted C-40 Crusher 27091 | -4/Waste | Destroyed C-40 Crusher 27097 | -4/Waste | EMP discharged 27197 | -4/Waste | EMP discharged 27240 | -4/Waste | Discovered new exit (range 16) 27297 | -4/Waste | EMP discharged 27297 | -4/Waste | System corruption reached 30% 27300 | -4/Waste | Entered Factory 27373 | -4/Factory | Found Powered Armor 27462 | -4/Factory | Identified exit to DSF 27478 | -4/Factory | Entered DSF 27478 | -4/DSF | Accompanied by 2 allies 27499 | -4/DSF | Additional patrols routed to DSF 27580 | -4/DSF | Discovered new exit (range 14) 27596 | -4/DSF | Entered Garrison 27775 | -4/Garrison | Spotted B-86 Titan 27824 | -4/Garrison | Destroyed B-86 Titan 27866 | -4/Garrison | Triggered checkpoint 27875 | -4/Garrison | Triggered checkpoint 27965 | -4/Garrison | Destroyed 10 combat bots 28292 | -4/Garrison | Discovered new exit (range 14) 28310 | -4/Garrison | Attempted to access garrison exit controls, blocked by remote lockdown 28386 | -4/Garrison | Triggered checkpoint 28476 | -4/Garrison | Triggered checkpoint 28581 | -4/Garrison | Discovered new exit (range 10) 28746 | -4/Garrison | Triggered checkpoint 28754 | -4/Garrison | Discovered new exit (range 10) 28798 | -4/Garrison | Installed Relay Interface Framework 28866 | -4/Garrison | Triggered checkpoint 28886 | -4/Garrison | Garrison Relay disabled 28966 | -4/Garrison | Entered Research 28966 | -3/Research | Evolved 2 slots: Utility x2 28967 | -3/Research | Identified exit to Armory 29087 | -3/Research | Identified exit to Research 29167 | -3/Research | Revision forces began assault on 0b10 29170 | -3/Research | Met up with Revision 17++ 29358 | -3/Research | Allied Derelicts emerged from ambush trap array 29532 | -3/Research | Fabricated Imp. Medium Armor Plating (x2) 29602 | -3/Research | Lost 3 allies 29667 | -3/Research | Research terminal network offline 30014 | -3/Research | Spotted Striker 30022 | -3/Research | Destroyed Striker 30068 | -3/Research | Lost 3 allies 30108 | -3/Research | Entered another Research area 30108 | -2/Research | Accompanied by 1 ally 30108 | -2/Research | Warlord forces began assault on 0b10 30108 | -2/Research | Evolved 2 slots: Utility x2 30218 | -2/Research | Research machine network offline 30731 | -2/Research | Borebot progress halted 30749 | -2/Research | Spotted Executioner 30842 | -2/Research | Borebot progress halted 30950 | -2/Research | Discovered new exit (range 10) 30962 | -2/Research | Identified exit to Quarantine 31091 | -2/Research | Borebot progress halted 31368 | -2/Research | Spotted B-90 Cyclops 31431 | -2/Research | Discovered new exit (range 13) 31592 | -2/Research | Spotted Executioner 31597 | -2/Research | Spotted Executioner 31599 | -2/Research | Destroyed Executioner 31599 | -2/Research | Destroyed Executioner 31619 | -2/Research | Given Cave Seal Controls access code 31655 | -2/Research | Destroyed 8 combat bots 31710 | -2/Research | Entered Access 31710 | -1/Access | Evolved 2 slots: Power x1, Utility x1 32116 | -1/Access | Discovered new exit (range 20) 32439 | -1/Access | Build established: Scavenger-Golem 33210 | -1/Access | First assault squad dispatched 33547 | -1/Access | Destroyed 7 combat bots 34100 | -1/Access | Build established: Golem 34131 | -1/Access | System corruption reached 10% 34573 | -1/Access | Discovered new exit (range 6) 34579 | -1/Access | Entered Command 34676 | -1/Command | Enhanced Grunt warped into view, answering call for help 34678 | -1/Command | Disengaged cave seal 34678 | -1/Command | Derelicts emerged from the dark tunnel 34678 | -1/Command | Welcomed Warlord to Command 34686 | -1/Command | Enhanced Grunt warped into view, answering call for help 34708 | -1/Command | Found Prototype Processor 34708 | -1/Command | Identified Exp. Targeting Computer 34714 | -1/Command | Found Exp. Targeting Computer 34793 | -1/Command | Lost 5 allies 34829 | -1/Command | First assault squad dispatched 34849 | -1/Command | Lost 3 allies 34947 | -1/Command | Spotted B-99 Colossus 34960 | -1/Command | Allies destroyed B-99 Colossus 35035 | -1/Command | Warlord commented on Warlord statues 35043 | -1/Command | Spotted M Guard 35043 | -1/Command | Spotted M Guard 35044 | -1/Command | Spotted Combat Programmer 35045 | -1/Command | Spotted Combat Programmer 35062 | -1/Command | Destroyed Combat Programmer 35088 | -1/Command | Destroyed M Guard 35099 | -1/Command | Lost 4 allies 35105 | -1/Command | Destroyed M Guard 35105 | -1/Command | All MAIN.C guards destroyed 35111 | -1/Command | Lost 4 parts (1p1u2w) 35113 | -1/Command | Found Prototype Reactor 35113 | -1/Command | Identified Zero-point Reactor 35116 | -1/Command | Found Prototype Energy Cannon 35116 | -1/Command | Identified Cld. Nova Cannon 35362 | -1/Command | Met MAIN.C 35374 | -1/Command | Warlord shut down involuntarily 35393 | -1/Command | Hacked MAIN.C using A7's code 35447 | -1/Command | Destroyed MAIN.C Shell 35450 | -1/Command | MAIN.C activated Command garrisons 35451 | -1/Command | Surrendered to MAIN.C 35451 | -1/Command | Loaded intel: 57 machine locations 35451 | -1/Command | Loaded intel: 101 trap records 35451 | -1/Command | Identified exit to Surface 35451 | -1/Command | Discovered exit to Surface (range 69) 35451 | -1/Command | Discovered exit to Surface (range 74) 35487 | -1/Command | Found Prototype Protection 35487 | -1/Command | Identified Centrium Heavy Armor Plating 35602 | -1/Command | Found Vortex Chain Reactor 35605 | -1/Command | Found Zero-point Reactor 35608 | -1/Command | Found Prototype Device 35608 | -1/Command | Identified Exp. Transmission Jammer 35611 | -1/Command | Found Prototype Device 35611 | -1/Command | Identified Exp. ECM Suite 35614 | -1/Command | Found Prototype Device 35614 | -1/Command | Identified Exp. System Purifier 35617 | -1/Command | Found Prototype Device 35617 | -1/Command | Identified Thermal Barrier 35662 | -1/Command | MAIN.C activated Command garrisons 35702 | -1/Command | Unknown forces attacked Command 35702 | -1/Command | Spotted EQ-000 35702 | -1/Command | Spotted EQ-006 35702 | -1/Command | Spotted EQ-001 35702 | -1/Command | Spotted EQ-004 35702 | -1/Command | Spotted EQ-005 35702 | -1/Command | Spotted EQ-003 35759 | -1/Command | Core integrity fell below 50% 35759 | -1/Command | Destroyed EQ-004 35763 | -1/Command | Destroyed EQ-006 35786 | -1/Command | Spotted EQ-026 35786 | -1/Command | Spotted EQ-019 35795 | -1/Command | Spotted EQ-018 35797 | -1/Command | Destroyed EQ-026 35803 | -1/Command | Spotted EQ-022 35804 | -1/Command | Spotted EQ-015 35816 | -1/Command | Core integrity fell below 20% 35817 | -1/Command | Spotted EQ-020 35817 | -1/Command | Destroyed EQ-018 35829 | -1/Command | Spotted EQ-023 35835 | -1/Command | Destroyed by EQ-023 with Cooled Phase Cannon Last Messages --------------- 35822_ Swarm Drone destroyed. 35824_ Acquired 12 matter. 35825_ Slug penetrates Reinforced Barrier. 35826_ System corrupted: Centrium Leg rejected. 35827_ Knocked back. 35828_ Asb. Focal Cannon destroyed. 35828_ Swarm Drone destroyed. 35828_ Penetrated by Slug. 35828_ Slug penetrates Reinforced Barrier. 35829_ Cld. Nova Cannon destroyed. 35829_ Vortex Chain Reactor destroyed. 35829_ Discarded GOLEM Unit. 35831_ Penetrated by Slug. 35832_ Asb. Nanovents destroyed. 35832_ Slug penetrates EQ-015. 35833_ Penetrated by Slug. 35833_ Knocked back. 35833_ EQ-020 suffers critical hit (Destroy). 35834_ Slug penetrates Reinforced Barrier. [Achievement: Torch] Map ----- +----------------------------------------------------+ | ### # ! ## !! * #?????????????????????? | | #?# # ## !! ==#?????????????????????? | | #?# # "##########?????????????????????? | | #?# # ""#??????????????????????????????? | | #?# + ""#??????????????????????????????? | | #?# # ""#??????????????????????????????? | | ####+##+## ""#??????????????????????????????? | | # # T"#??###########################?? | | # # ""#??#?????????????????????????#?? | | + ] # ""#??#?#######################?#?? | | # # ""#??#?#" % ]* % % ##### | | # /*! # ""#??#?#"" ! ] % % #?#?? | | # /!! # "#??#?#" ! ] % ##### | | # /! # #??#?# = = | | # # #??#?# != =% | | # #### #####??#?# ]%! !! | | ############# ######?#?# =]%% ##### | | #????????# #?#?# %!%% #?#?? | | #???###### !! #?#?# = !%=% ##### | | ##### #[ != #?#?# % % ""#?#?? | | "" # !! #?#?# Q ""#?#?? | | "T / [#?#?# %= """"""#?#?? | | ##### # ! #?#?# % """""#?#?? | | ### ##### ######?#?# Q Q Q " " #?#?? | | #?# ## # ##### " #?#?? | | " #?# ## %! @ " " #?#?? | | " #?# ## ! % Q % " "" #?#?? | | " #?# ## % *=% " #?#?? | | " #?# ## # #### Q " #?#?? | | #?# ### #??#??#?# % """ """#?#?? | | #?# #?# #??????#?# "" " #?#?? | | " #?# #?# #??????#?#######################?#?? | | " ### ### #??????#?????????????????????????#?? | | " ## ## ##?????###########################?? | | " + # #?????????????????????????????????? | | ## # #?????????????????????????????????? | | ## #?????????????????????????????????? | | ####### #?????????????????????????????????? | | #?????# #?????????????????????????????????? | | ####???#####+#####???????????????????????????????? | | ???????# #???????????????????????????????? | | ???????# #???????????????????????????????? | | ???????# ] #???????????????????????????????? | | ######## #???????????????????????????????? | | + #???????????????????????????????? | | ######## #???????????????????????????????? | | ???????# #???????????????????????????????? | | ???????# #???????????????????????????????? | | ???????###########???????????????????????????????? | | ?????????????????????????????????????????????????? | +----------------------------------------------------+ Best States ------------- Heat Dissipation 105 Energy Generation 83 Energy Capacity 2950 Matter Stores 300 Matter Capacity 300 Sight Range 16 Robot Scan Range 20 Terrain Scan Range 24 Terrain Scan Density 2010 Jamming Range 22 Additional Mass Support 20 Base Temperature (-) 200 EM Shielding 2 Armor Coverage 1200 Resistance: KI 15 Resistance: TH 50 Resistance: EX 15 Resistance: EM 15 Resistance: I 15 Resistance: S 15 Resistance: P 15 Weapon Shielding 100 Point Defense Rating 240 Phase Shifting 20 Evasion (%) 90 Targeting Accuracy 20 Core Analysis 8 Recoil Reduction 4 Particle Charging 30 Offensive Hacking 10 Relay Coupler Types 1 Relay Coupler Value 19 Authchip Count 1 Item Schematics ----------------- Hcp. Storage Unit | -8/Materials | Hacked Imp. Medium Armor Plating | -7/Factory | Scanalyzed Robot Schematics ------------------ None Fabricated ------------ S-27 Virus | x4 | -7/Factory | Preloaded Hcp. Storage Unit | x1 | -6/Factory Imp. Medium Armor Plating | x2 | -3/Research | Authchip Repaired ---------- Nothing Studied --------- Med. Treads | -8/Materials | Hacked Great Maul | -7/Factory | Hacked Alien Tech Used ----------------- None Achievements -------------- Equal Opportunity Bot Ew, Corruption Late Bloomer Myspace Off Switch Prodigal Son Protector Showdown Torch Welcome To The Revolution Well-fed Force Field Window Shopping Challenges ------------ None Game ------ Seed IonicTachyonBallwheel Manual? 0 Play Time 06:14:59 Cumulative 337.5 hours Start 2026.03.15 @ 21:39:55 End 2026.03.16 @ 16:46:03 Sessions 3 Manual Loads 0 Difficulty Rogue Special Mode None Game No. 118 Rogue 117 Adventurer 1 Explorer 0 Win Type - Total 12 Types 10/0/2/0/0/0/0/0/0/0 Lore% 77 Gallery% 71 Achievement% 50 Wizard Run 0 Options --------- Layout 0 ASCII 1 Keyboard 1 Movement Vi Keybinds 0 Fullscreen 1 Font 36/Terminus++ Map View 76x50 Zoom Use 0% Tactical HUD 1 Map Filters NONE Filters NONE Steam 0 RUN: b0e2210d-9734-4a04-8c03-00845e27dc55